Workbook

Sheet Feuil1
W2: SP1 Placé
A3: Date | B3: P1 | C3: P2 | D3: P3 | E3: P4 | G3: 1er | H3: 2ème | I3: 3ème | J3: 4ème | K3: 5ème | L3: SG | M3: SP1 | N3: SP2 | O3: SP3 | U3: P1 | V3: Result | W3: Cote | X3: Mise | Y3: Cumul Mises | Z3: Gain Brut | AA3: Cumul des gain | AB3: Résultat net
A4: 2014-12-15 | B4: 4 | C4: 2 | D4: 1 | E4: 9 | G4: 7 | H4: 2 | I4: 4 | J4: 10 | K4: 9 | L4: 3.5 | M4: 1.5 | N4: 2.5 | O4: 1.5 | Q4: =IF(L4="","",COUNTIF(B4:E4,G4)) -> 0 | R4: =IF(M4="","",COUNTIF(B4:E4,H4)) -> 1 | S4: =IF(N4="","",COUNTIF(B4:E4,I4)) -> 1 | U4: =IF(L4="","",COUNTIF(B4,G4)) -> 0 | V4: =IF(L4="","",IF(U4=0,"P","G")) -> P | W4: =IF(L4="","",IF(V4="P",0,M4)) -> 0 | X4: =IF(V4="","",IF(OR(ISTEXT(X3),AND(AB3>0,V3="G")),1,IF(Z3=0,X3*2,ABS(ROUNDUP(AB3*2,0))))) -> 1 | Y4: =IF(X4="","",SUM($X$4:X4)) -> 1 | Z4: =IF(X4="","",W4*X4) -> 0 | AA4: =IF(X4="","",SUM($Z$4:Z4)) -> 0 | AB4: =IF(X4="","",SUM($Z$4:Z4)-SUM($X$4:X4)) -> -1
A5: CAGNES SUR MER | B5: 8 | C5: 9 | D5: 2 | E5: 10 | G5: 14 | H5: 9 | I5: 1 | J5: 12 | K5: 7 | L5: 16.4 | M5: 4.4 | N5: 2.8 | O5: 2.6 | Q5: =IF(L5="","",COUNTIF(B5:E5,G5)) -> 0 | R5: =IF(M5="","",COUNTIF(B5:E5,H5)) -> 1 | S5: =IF(N5="","",COUNTIF(B5:E5,I5)) -> 0 | U5: =IF(L5="","",COUNTIF(B5,G5)) -> 0 | V5: =IF(L5="","",IF(U5=0,"P","G")) -> P | W5: =IF(L5="","",IF(V5="P",0,M5)) -> 0 | X5: =IF(V5="","",IF(OR(ISTEXT(X4),AND(AB4>0,V4="G")),1,IF(Z4=0,X4*2,ABS(ROUNDUP(AB4*2,0))))) -> 2 | Y5: =IF(X5="","",SUM($X$4:X5)) -> 3 | Z5: =IF(X5="","",W5*X5) -> 0 | AA5: =IF(X5="","",SUM($Z$4:Z5)) -> 0 | AB5: =IF(X5="","",SUM($Z$4:Z5)-SUM($X$4:X5)) -> -3
B6: 4 | C6: 15 | D6: 5 | E6: 3 | G6: 16 | H6: 6 | I6: 5 | J6: 14 | K6: 7 | L6: 45.5 | M6: 11.4 | N6: 11.5 | O6: 3.9 | Q6: 0 | R6: 0 | S6: 1 | U6: 0 | V6: P | W6: 0 | X6: 4 | Y6: =IF(X6="","",SUM($X$4:X6)) -> 7 | Z6: 0 | AA6: =IF(X6="","",SUM($Z$4:Z6)) -> 0 | AB6: =IF(X6="","",SUM($Z$4:Z6)-SUM($X$4:X6)) -> -7
B7: 6 | C7: 5 | D7: 8 | E7: 2 | G7: 6 | H7: 2 | I7: 7 | J7: 8 | K7: 5 | L7: 8.9 | M7: 2.1 | N7: 1.3 | O7: 1.8 | Q7: 1 | R7: 1 | S7: 0 | U7: 1 | V7: G | W7: 2.1 | X7: 8 | Y7: =IF(X7="","",SUM($X$4:X7)) -> 15 | Z7: 16.8 | AA7: =IF(X7="","",SUM($Z$4:Z7)) -> 16.8 | AB7: =IF(X7="","",SUM($Z$4:Z7)-SUM($X$4:X7)) -> 1.8
B8: 2 | C8: 1 | D8: 3 | E8: 5 | G8: 2 | H8: 5 | I8: 6 | J8: 7 | K8: 1 | L8: 4.1 | M8: 1.7 | N8: 10.2 | O8: 4.9 | Q8: 1 | R8: 1 | S8: 0 | U8: 1 | V8: G | W8: 1.7 | X8: 1 | Y8: =IF(X8="","",SUM($X$4:X8)) -> 16 | Z8: 1.7 | AA8: =IF(X8="","",SUM($Z$4:Z8)) -> 18.5 | AB8: =IF(X8="","",SUM($Z$4:Z8)-SUM($X$4:X8)) -> 2.5
B9: 9 | C9: 11 | D9: 4 | E9: 3 | G9: 2 | H9: 3 | I9: 11 | J9: 4 | K9: 12 | L9: 15.5 | M9: 4 | N9: 3.6 | O9: 4.5 | Q9: 0 | R9: 1 | S9: 1 | U9: 0 | V9: P | W9: 0 | X9: 1 | Y9: =IF(X9="","",SUM($X$4:X9)) -> 17 | Z9: 0 | AA9: =IF(X9="","",SUM($Z$4:Z9)) -> 18.5 | AB9: =IF(X9="","",SUM($Z$4:Z9)-SUM($X$4:X9)) -> 1.5
B10: 9 | C10: 6 | D10: 3 | E10: 5 | G10: 7 | H10: 5 | I10: 6 | J10: 3 | K10: 2 | L10: 14.1 | M10: 4.5 | N10: 2.5 | O10: 2.2 | Q10: 0 | R10: 1 | S10: 1 | U10: 0 | V10: P | W10: 0 | X10: 2 | Y10: =IF(X10="","",SUM($X$4:X10)) -> 19 | Z10: 0 | AA10: =IF(X10="","",SUM($Z$4:Z10)) -> 18.5 | AB10: =IF(X10="","",SUM($Z$4:Z10)-SUM($X$4:X10)) -> -0.5
Y11: =IF(X11="","",SUM($X$4:X11)) ->  | AA11: =IF(X11="","",SUM($Z$4:Z11)) ->  | AB11: =IF(X11="","",SUM($Z$4:Z11)-SUM($X$4:X11)) -> 
A12: 2014-12-16 | B12: 1 | C12: 6 | D12: 8 | E12: 12 | G12: 1 | H12: 9 | I12: 10 | J12: 13 | K12: 15 | L12: 4.3 | M12: 2.3 | N12: 2.4 | O12: 3.5 | Q12: 1 | R12: 0 | S12: 0 | U12: 1 | V12: G
A13: PAU | B13: 10 | C13: 9 | D13: 12 | E13: 3 | G13: 3 | H13: 1 | I13: 4 | J13: 10 | K13: 12 | L13: 8 | M13: 2.9 | N13: 4.7 | O13: 4.3 | Q13: 1 | R13: 0 | S13: 0 | U13: 0 | V13: P
B14: 9 | C14: 5 | D14: 2 | E14: 1 | G14: 9 | H14: 7 | I14: 11 | J14: 15 | K14: 14 | L14: 3.5 | M14: 1.5 | N14: 3.5 | O14: 2.7 | Q14: 1 | R14: 0 | S14: 0 | U14: 1 | V14: G
B15: 3 | C15: 6 | D15: 12 | E15: 10 | G15: 3 | H15: 6 | I15: 12 | J15: 4 | K15: 8 | L15: 2.8 | M15: 1.3 | N15: 1.5 | O15: 2 | Q15: 1 | R15: 1 | S15: 1 | U15: 1 | V15: G
B16: 2 | C16: 3 | D16: 11 | E16: 12 | G16: 12 | H16: 2 | I16: 11 | J16: 4 | K16: 13 | L16: 11.7 | M16: 2.6 | N16: 1.5 | O16: 6.4 | Q16: 1 | R16: 1 | S16: 1 | U16: 0 | V16: P
B17: 2 | C17: 5 | D17: 7 | E17: 3 | G17: 2 | H17: 9 | I17: 1 | J17: 6 | K17: 13 | L17: 10.7 | M17: 3.1 | N17: 2.2 | O17: 2.5 | Q17: 1 | R17: 0 | S17: 0 | U17: 1 | V17: G
B18: 5 | C18: 6 | D18: 4 | E18: 2 | G18: 12 | H18: 9 | I18: 2 | J18: 3 | K18: 10 | L18: 14.5 | M18: 4.4 | N18: 4.4 | O18: 2.6 | Q18: 0 | R18: 0 | S18: 1 | U18: 0 | V18: P
B19: 12 | C19: 2 | D19: 8 | E19: 11 | G19: 14 | H19: 11 | I19: 8 | J19: 10 | K19: 3 | L19: 23.1 | M19: 5 | N19: 1.8 | O19: 2.9 | Q19: 0 | R19: 1 | S19: 1 | U19: 0 | V19: P
A21: 2014-12-17 | B21: 4 | C21: 9 | D21: 8 | E21: 10 | G21: 9 | H21: 4 | I21: 15 | J21: 2 | K21: 5 | L21: 5.8 | M21: 2.6 | N21: 2 | O21: 8.7 | Q21: 1 | R21: 1 | S21: 0 | U21: 0 | V21: P
A22: VINCENNES | B22: 9 | C22: 14 | D22: 15 | E22: 4 | G22: 14 | H22: 10 | I22: 9 | J22: 12 | K22: 1 | L22: 7.1 | M22: 2.6 | N22: 7.1 | O22: 1.5 | Q22: 1 | R22: 0 | S22: 1 | U22: 0 | V22: P
B23: 3 | C23: 4 | D23: 2 | E23: 7 | G23: 3 | H23: 4 | I23: 8 | J23: 5 | K23: 7 | L23: 5 | M23: 2.1 | N23: 3.7 | O23: 13 | Q23: 1 | R23: 1 | S23: 0 | U23: 1 | V23: G
B24: 6 | C24: 16 | D24: 14 | E24: 18 | G24: 14 | H24: 2 | I24: 7 | J24: 8 | K24: 13 | L24: 11.4 | M24: 4 | N24: 3.3 | O24: 1.6 | Q24: 1 | R24: 0 | S24: 0 | U24: 0 | V24: P
B25: 7 | C25: 11 | D25: 9 | E25: 6 | G25: 6 | H25: 10 | I25: 4 | J25: 5 | K25: 7 | L25: 36.6 | M25: 5.6 | N25: 1.7 | O25: 4 | Q25: 1 | R25: 0 | S25: 0 | U25: 0 | V25: P
B26: 8 | C26: 9 | D26: 7 | E26: 4 | G26: 3 | H26: 8 | I26: 4 | J26: 6 | K26: 10 | L26: 10.2 | M26: 2.7 | N26: 3.6 | O26: 1.6 | Q26: 0 | R26: 1 | S26: 1 | U26: 0 | V26: P
B27: 14 | C27: 15 | D27: 11 | E27: 9 | G27: 6 | H27: 15 | I27: 12 | J27: 14 | K27: 1 | L27: 24 | M27: 5 | N27: 1.3 | O27: 3.7 | Q27: 0 | R27: 1 | S27: 0 | U27: 0 | V27: P
B28: 8 | C28: 7 | D28: 5 | E28: 4 | G28: 7 | H28: 8 | I28: 5 | J28: 4 | K28: 2 | L28: 6.9 | M28: 1.4 | N28: 1.1 | O28: 1.4 | Q28: 1 | R28: 1 | S28: 1 | U28: 0 | V28: P
A30: 2014-12-18 | B30: 3 | C30: 5 | D30: 16 | E30: 13 | G30: 9 | H30: 14 | I30: 11 | J30: 5 | K30: 8 | L30: 8.5 | M30: 3.2 | N30: 6 | O30: 3.6 | Q30: 0 | R30: 0 | S30: 0 | U30: 0 | V30: P
A31: CABOURG | B31: 8 | C31: 12 | D31: 15 | E31: 14 | G31: 8 | H31: 15 | I31: 12 | J31: 5 | K31: 14 | L31: 3.5 | M31: 1.3 | N31: 1.8 | O31: 2.1 | Q31: 1 | R31: 1 | S31: 1 | U31: 1 | V31: G
B32: 10 | C32: 11 | D32: 6 | E32: 7 | G32: 10 | H32: 8 | I32: 3 | J32: 4 | K32: 11 | L32: 5.4 | M32: 1.7 | N32: 3 | O32: 4.8 | Q32: 1 | R32: 0 | S32: 0 | U32: 1 | V32: G
B33: 7 | C33: 3 | D33: 11 | E33: 5 | G33: 14 | H33: 13 | I33: 3 | J33: 6 | K33: 9 | L33: 6.2 | M33: 1.9 | N33: 3 | O33: 1.6 | Q33: 0 | R33: 0 | S33: 1 | U33: 0 | V33: P
B34: 2 | C34: 6 | D34: 11 | E34: 12 | G34: 16 | H34: 4 | I34: 3 | J34: 11 | K34: 14 | L34: 2.8 | M34: 1.6 | N34: 3 | O34: 4.6 | Q34: 0 | R34: 0 | S34: 0 | U34: 0 | V34: P
B35: 4 | C35: 14 | D35: 17 | E35: 3 | G35: 12 | H35: 10 | I35: 8 | J35: 17 | K35: 15 | L35: 19.5 | M35: 6.6 | N35: 2.1 | O35: 7.4 | Q35: 0 | R35: 0 | S35: 0 | U35: 0 | V35: P
B36: 12 | C36: 7 | D36: 13 | E36: 4 | G36: 12 | H36: 8 | I36: 7 | J36: 4 | K36: 13 | L36: 3.7 | M36: 2 | N36: 2.2 | O36: 4 | Q36: 1 | R36: 0 | S36: 1 | U36: 1 | V36: G
B37: 13 | C37: 14 | D37: 5 | E37: 11 | G37: 11 | H37: 5 | I37: 13 | J37: 2 | K37: 7 | L37: 8.2 | M37: 3.2 | N37: 2.6 | O37: 2.4 | Q37: 1 | R37: 1 | S37: 1 | U37: 0 | V37: P
A39: 2014-12-19 | B39: 12 | C39: 4 | D39: 10 | E39: 14 | G39: 2 | H39: 12 | I39: 13 | J39: 10 | K39: 11 | L39: 11 | M39: 3.2 | N39: 9.6 | O39: 1.5 | Q39: 0 | R39: 1 | S39: 0 | U39: 0 | V39: P
A40: VINCENNES | B40: 2 | C40: 9 | D40: 4 | E40: 15 | G40: 5 | H40: 1 | I40: 10 | J40: 7 | K40: 6 | L40: 7.3 | M40: 2 | N40: 4.1 | O40: 6.4 | Q40: 0 | R40: 0 | S40: 0 | U40: 0 | V40: P
B41: 13 | C41: 15 | D41: 12 | E41: 8 | G41: 13 | H41: 12 | I41: 15 | J41: 5 | K41: 10 | L41: 3.6 | M41: 1.7 | N41: 3.6 | O41: 2.1 | Q41: 1 | R41: 1 | S41: 1 | U41: 1 | V41: G
B42: 11 | C42: 8 | D42: 9 | E42: 5 | G42: 8 | H42: 11 | I42: 4 | J42: 9 | K42: 7 | L42: 6.8 | M42: 2 | N42: 1.1 | O42: 3.1 | Q42: 1 | R42: 1 | S42: 0 | U42: 0 | V42: P
B43: 9 | C43: 5 | D43: 12 | E43: 15 | G43: 15 | H43: 9 | I43: 2 | J43: 5 | K43: 12 | L43: 1.7 | M43: 1.2 | N43: 2.6 | O43: 2.7 | Q43: 1 | R43: 1 | S43: 0 | U43: 0 | V43: P
B44: 13 | C44: 7 | D44: 8 | E44: 9 | G44: 5 | H44: 13 | I44: 12 | J44: 8 | K44: 7 | L44: 10.7 | M44: 3.3 | N44: 1.7 | O44: 3.7 | Q44: 0 | R44: 1 | S44: 0 | U44: 0 | V44: P
B45: 13 | C45: 11 | D45: 14 | E45: 9 | G45: 13 | H45: 15 | I45: 11 | J45: 2 | K45: 4 | L45: 5.9 | M45: 2.3 | N45: 2.7 | O45: 1.3 | Q45: 1 | R45: 0 | S45: 1 | U45: 1 | V45: G
B46: 2 | C46: 3 | D46: 8 | E46: 9 | G46: 7 | H46: 5 | I46: 6 | J46: 3 | K46: 2 | L46: 4.4 | M46: 1.8 | N46: 1.7 | O46: 2.7 | Q46: 0 | R46: 0 | S46: 0 | U46: 0 | V46: P
A48: 2014-12-20 | B48: 10 | C48: 1 | D48: 8 | E48: 12 | G48: 1 | H48: 12 | I48: 7 | J48: 8 | K48: 10 | L48: 6 | M48: 1.9 | N48: 1.2 | O48: 1.7 | Q48: 1 | R48: 1 | S48: 0 | U48: 0 | V48: P
A49: VINCENNES | B49: 10 | C49: 12 | D49: 6 | E49: 9 | G49: 10 | H49: 9 | I49: 7 | J49: 8 | K49: 4 | L49: 1.7 | M49: 1.2 | N49: 1.5 | O49: 1.3 | Q49: 1 | R49: 1 | S49: 0 | U49: 1 | V49: G
B50: 7 | C50: 12 | D50: 5 | E50: 4 | G50: 11 | H50: 5 | I50: 3 | J50: 6 | K50: 10 | L50: 6.3 | M50: 2.1 | N50: 1.7 | O50: 4.5 | Q50: 0 | R50: 1 | S50: 0 | U50: 0 | V50: P
B51: 4 | C51: 1 | D51: 9 | E51: 16 | G51: 18 | H51: 12 | I51: 1 | J51: 4 | K51: 9 | L51: 10.5 | M51: 3.8 | N51: 2.8 | O51: 3.3 | Q51: 0 | R51: 0 | S51: 1 | U51: 0 | V51: P
B52: 7 | C52: 8 | D52: 4 | E52: 5 | G52: 8 | H52: 1 | I52: 3 | J52: 2 | K52: 4 | L52: 1.6 | M52: 1.1 | N52: 4.9 | O52: 2.3 | Q52: 1 | R52: 0 | S52: 0 | U52: 0 | V52: P
B53: 10 | C53: 1 | D53: 11 | E53: 4 | G53: 10 | H53: 12 | I53: 11 | J53: 1 | K53: 8 | L53: 3.4 | M53: 1.7 | N53: 1.8 | O53: 1.3 | Q53: 1 | R53: 0 | S53: 1 | U53: 1 | V53: G
B54: 9 | C54: 10 | D54: 5 | E54: 6 | G54: 1 | H54: 6 | I54: 10 | J54: 2 | K54: 7 | L54: 3.4 | M54: 2.2 | N54: 2 | O54: 2.1 | Q54: 0 | R54: 1 | S54: 1 | U54: 0 | V54: P
B55: 11 | C55: 16 | D55: 8 | E55: 2 | G55: 2 | H55: 6 | I55: 1 | J55: 10 | K55: 16 | L55: 3.5 | M55: 1.8 | N55: 2.1 | O55: 2 | Q55: 1 | R55: 0 | S55: 0 | U55: 0 | V55: P
Q56: =IF(L56="","",COUNTIF(B56:E56,G56)) ->  | R56: =IF(M56="","",COUNTIF(B56:E56,H56)) ->  | S56: =IF(N56="","",COUNTIF(B56:E56,I56)) -> 
A57: 2014-12-21 | B57: 9 | C57: 5 | D57: 4 | E57: 10 | G57: 8 | H57: 3 | I57: 11 | J57: 6 | K57: 2 | L57: 11.6 | M57: 2.8 | N57: 5.4 | O57: 7.3 | Q57: 0 | R57: 0 | S57: 0 | U57: 0 | V57: P
A58: VINCENNES | B58: 11 | C58: 8 | D58: 6 | E58: 9 | G58: 6 | H58: 8 | I58: 7 | J58: 16 | K58: 10 | L58: 3.9 | M58: 1.7 | N58: 2.2 | O58: 3.4 | Q58: 1 | R58: 1 | S58: 0 | U58: 0 | V58: P
B59: 5 | C59: 3 | D59: 7 | E59: 10 | G59: 5 | H59: 10 | I59: 6 | J59: 8 | K59: 2 | L59: 4.7 | M59: 1.3 | N59: 1.2 | O59: 1.6 | Q59: 1 | R59: 1 | S59: 0 | U59: 1 | V59: G
B60: 1 | C60: 5 | D60: 6 | E60: 15 | G60: 9 | H60: 17 | I60: 8 | J60: 1 | K60: 7 | L60: 19.9 | M60: 6.6 | N60: 4 | O60: 11.2 | Q60: 0 | R60: 0 | S60: 0 | U60: 0 | V60: P
B61: 12 | C61: 1 | D61: 8 | E61: 13 | G61: 12 | H61: 11 | I61: 3 | J61: 8 | K61: 10 | L61: 9.7 | M61: 3.4 | N61: 3.6 | O61: 11 | Q61: 1 | R61: 0 | S61: 0 | U61: 1 | V61: G
B62: 8 | C62: 9 | D62: 17 | E62: 11 | G62: 5 | H62: 1 | I62: 7 | J62: 4 | K62: 18 | L62: 13.4 | M62: 4.3 | N62: 6.3 | O62: 4.3 | Q62: 0 | R62: 0 | S62: 0 | U62: 0 | V62: P
B63: 11 | C63: 9 | D63: 5 | E63: 13 | G63: 11 | H63: 15 | I63: 9 | J63: 2 | K63: 6 | L63: 2.7 | M63: 2 | N63: 7.4 | O63: 2.1 | Q63: 1 | R63: 0 | S63: 1 | U63: 1 | V63: G
B64: 16 | C64: 12 | D64: 7 | E64: 14 | G64: 1 | H64: 3 | I64: 16 | J64: 12 | K64: 4 | L64: 31.7 | M64: 7.6 | N64: 6 | O64: 2.3 | Q64: 0 | R64: 0 | S64: 1 | U64: 0 | V64: P
A66: 2014-12-22 | B66: 4 | C66: 7 | D66: 3 | E66: 5 | G66: 4 | H66: 5 | I66: 10 | J66: 7 | K66: 2 | L66: 5.6 | M66: 2 | N66: 1.5 | O66: 3 | Q66: =IF(L66="","",COUNTIF(B66:E66,G66)) -> 1 | R66: =IF(M66="","",COUNTIF(B66:E66,H66)) -> 1 | S66: =IF(N66="","",COUNTIF(B66:E66,I66)) -> 0 | U66: 1 | V66: G
A67: DEAUVILLE | B67: 2 | C67: 9 | D67: 15 | E67: 10 | G67: 5 | H67: 6 | I67: 2 | J67: 1 | K67: 9 | L67: 14.2 | M67: 4.9 | N67: 3.1 | O67: 1.6 | Q67: 0 | R67: 0 | S67: 1 | U67: 0 | V67: P
B68: 1 | C68: 9 | D68: 3 | E68: 6 | G68: 4 | H68: 12 | I68: 11 | J68: 1 | K68: 6 | L68: 12.5 | M68: 5.3 | N68: 4.4 | O68: 8.6 | Q68: 0 | R68: 0 | S68: 0 | U68: 0 | V68: P
B69: 12 | C69: 8 | D69: 11 | E69: 10 | G69: 2 | H69: 9 | I69: 10 | J69: 13 | K69: 7 | L69: 8.4 | M69: 2.4 | N69: 2.3 | O69: 3.2 | Q69: 0 | R69: 0 | S69: 1 | U69: =IF(L69="","",COUNTIF(B69,G69)) -> 0 | V69: =IF(L69="","",IF(U69=0,"P","G")) -> P
B70: 4 | C70: 11 | D70: 13 | E70: 2 | G70: 7 | H70: 5 | I70: 13 | J70: 16 | K70: 10 | L70: 9.1 | M70: 3.1 | N70: 4.2 | O70: 2.7 | Q70: 0 | R70: 0 | S70: 1 | U70: 0 | V70: P
B71: 2 | C71: 4 | D71: 9 | E71: 3 | G71: 13 | H71: 16 | I71: 2 | J71: 9 | K71: 1 | L71: 21.8 | M71: 6.8 | N71: 5.9 | O71: 3.2 | Q71: 0 | R71: 0 | S71: 1 | U71: 0 | V71: P
B72: 6 | C72: 12 | D72: 13 | E72: 7 | G72: 4 | H72: 5 | I72: 8 | J72: 2 | K72: 14 | L72: 5.7 | M72: 2.7 | N72: 4.5 | O72: 6.1 | Q72: 0 | R72: 0 | S72: 0 | U72: 0 | V72: P
B73: 7 | C73: 3 | D73: 4 | E73: 13 | G73: 3 | H73: 10 | I73: 1 | J73: 4 | K73: 11 | L73: 18.9 | M73: 8.5 | N73: 6 | O73: 4.6 | Q73: 1 | R73: 0 | S73: 0 | U73: 0 | V73: P
A75: 2014-12-23 | B75: 4 | C75: 8 | D75: 2 | E75: 13 | G75: 2 | H75: 12 | I75: 4 | J75: 3 | K75: 6 | L75: 3.1 | M75: 1.6 | N75: 5.5 | O75: 1.7 | Q75: 1 | R75: 0 | S75: 1 | U75: 0 | V75: P
A76: VINCENNES | B76: 8 | C76: 9 | D76: 7 | E76: 4 | G76: 6 | H76: 1 | I76: 5 | J76: 16 | K76: 12 | L76: 5.8 | M76: 1.7 | N76: 4.3 | O76: 2.4 | Q76: 0 | R76: 0 | S76: 0 | U76: 0 | V76: P
B77: 4 | C77: 9 | D77: 8 | E77: 6 | G77: 9 | H77: 4 | I77: 6 | J77: 10 | K77: 1 | L77: 4.5 | M77: 1.7 | N77: 1.3 | O77: 1.8 | Q77: 1 | R77: 1 | S77: 1 | U77: 0 | V77: P
B78: 8 | C78: 11 | D78: 13 | E78: 10 | G78: 9 | H78: 12 | I78: 8 | J78: 7 | K78: 2 | L78: 46.7 | M78: 8.3 | N78: 2.7 | O78: 2.4 | Q78: 0 | R78: 0 | S78: 1 | U78: 0 | V78: P
B79: 9 | C79: 11 | D79: 4 | E79: 10 | G79: 8 | H79: 10 | I79: 9 | J79: 2 | K79: 6 | L79: 6.7 | M79: 2.1 | N79: 1.8 | O79: 2 | Q79: 0 | R79: 1 | S79: 1 | U79: 0 | V79: P
B80: 10 | C80: 5 | D80: 7 | E80: 11 | G80: 11 | H80: 7 | I80: 8 | J80: 5 | K80: 3 | L80: 2.3 | M80: 1.5 | N80: 4.4 | O80: 3 | Q80: 1 | R80: 1 | S80: 0 | U80: 0 | V80: P
B81: 13 | C81: 6 | D81: 4 | E81: 1 | G81: 13 | H81: 5 | I81: 1 | J81: 15 | K81: 2 | L81: 4.7 | M81: 2.1 | N81: 6.7 | O81: 16.7 | Q81: 1 | R81: 0 | S81: 1 | U81: 1 | V81: G
B82: 6 | C82: 9 | D82: 3 | E82: 7 | G82: 9 | H82: 3 | I82: 6 | J82: 5 | K82: 8 | L82: 2 | M82: 1.1 | N82: 2.3 | O82: 1.9 | Q82: 1 | R82: 1 | S82: 1 | U82: 0 | V82: P
A84: 2014-12-24 | B84: 1 | C84: 5 | D84: 4 | E84: 2 | G84: 5 | H84: 2 | I84: 1 | J84: 4 | K84: 3 | L84: 8.4 | M84: 2.6 | N84: 1.6 | Q84: 1 | R84: 1 | S84: 1 | U84: 0 | V84: P
A85: CAGNES SUR MER | B85: 9 | C85: 6 | D85: 3 | E85: 2 | G85: 6 | H85: 3 | I85: 10 | J85: 2 | K85: 1 | L85: 9.8 | M85: 3.1 | N85: 2.1 | O85: 3.1 | Q85: 1 | R85: 1 | S85: 0 | U85: 0 | V85: P
B86: 3 | C86: 1 | D86: 4 | E86: 10 | G86: 9 | H86: 15 | I86: 11 | J86: 13 | K86: 2 | L86: 5.5 | M86: 2.2 | N86: 8 | O86: 4.6 | Q86: 0 | R86: 0 | S86: 0 | U86: 0 | V86: P
B87: 4 | C87: 8 | D87: 6 | E87: 2 | G87: 1 | H87: 11 | I87: 6 | J87: 4 | K87: 10 | L87: 9.6 | M87: 2.7 | N87: 2.3 | O87: 1.7 | Q87: 0 | R87: 0 | S87: 1 | U87: 0 | V87: P
B88: 1 | C88: 8 | D88: 3 | E88: 4 | G88: 8 | H88: 7 | I88: 2 | J88: 3 | K88: 1 | L88: 6.1 | M88: 2.6 | N88: 2.6 | O88: 4.4 | Q88: 1 | R88: 0 | S88: 0 | U88: 0 | V88: P
B89: 8 | C89: 2 | D89: 6 | E89: 5 | G89: 1 | H89: 3 | I89: 11 | J89: 4 | K89: 6 | L89: 7.2 | M89: 2.8 | N89: 9.7 | O89: 9.7 | Q89: 0 | R89: 0 | S89: 0 | U89: 0 | V89: P
B90: 3 | C90: 11 | D90: 4 | E90: 6 | G90: 3 | H90: 7 | I90: 6 | J90: 10 | K90: 4 | L90: 8.1 | M90: 2.2 | N90: 1.5 | O90: 9 | Q90: 1 | R90: 0 | S90: 1 | U90: 1 | V90: G
B91: 6 | C91: 9 | D91: 2 | E91: 1 | G91: 16 | H91: 9 | I91: 1 | J91: 6 | K91: 13 | L91: 29 | M91: 6.8 | N91: 3 | O91: 2.1 | Q91: 0 | R91: 1 | S91: 1 | U91: 0 | V91: P
A93: 2014-12-25 | B93: 3 | C93: 4 | D93: 17 | E93: 18 | G93: 2 | H93: 7 | I93: 8 | J93: 10 | K93: 18 | L93: 41.6 | M93: 9.3 | N93: 2.4 | O93: 4.9 | Q93: 0 | R93: 0 | S93: 0 | U93: 0 | V93: P
A94: VINCENNES | B94: 9 | C94: 15 | D94: 14 | E94: 17 | G94: 14 | H94: 16 | I94: 8 | J94: 15 | K94: 11 | L94: 11.9 | M94: 3.4 | N94: 5.7 | O94: 4.6 | Q94: 1 | R94: 0 | S94: 0 | U94: 0 | V94: P
B95: 8 | C95: 3 | D95: 6 | E95: 4 | G95: 2 | H95: 4 | I95: 6 | J95: 7 | L95: 3.5 | M95: 2.1 | N95: 2.1 | O95: 2 | Q95: 0 | R95: 1 | S95: 1 | U95: 0 | V95: P
B96: 5 | C96: 8 | D96: 3 | E96: 7 | G96: 7 | H96: 15 | I96: 6 | J96: 12 | K96: 9 | L96: 5.7 | M96: 1.7 | N96: 1.3 | O96: 2.5 | Q96: 1 | R96: 0 | S96: 0 | U96: 0 | V96: P
B97: 3 | C97: 7 | D97: 13 | E97: 11 | G97: 15 | H97: 6 | I97: 14 | J97: 3 | K97: 13 | L97: 17 | M97: 4.3 | N97: 2.4 | O97: 29 | Q97: 0 | R97: 0 | S97: 0 | U97: 0 | V97: P
B98: 5 | C98: 9 | D98: 7 | E98: 3 | G98: 4 | H98: 8 | I98: 9 | J98: 7 | K98: 1 | L98: 6.4 | M98: 2.2 | N98: 3 | O98: 3.2 | Q98: 0 | R98: 0 | S98: 1 | U98: 0 | V98: P
B99: 10 | C99: 12 | D99: 11 | E99: 7 | G99: 6 | H99: 3 | I99: 12 | J99: 2 | K99: 9 | L99: 9.6 | M99: 2.8 | N99: 2.8 | O99: 2.7 | Q99: 0 | R99: 0 | S99: 1 | U99: 0 | V99: P
B100: 2 | C100: 11 | D100: 4 | E100: 6 | G100: 11 | H100: 13 | I100: 12 | J100: 15 | K100: 3 | L100: 8.2 | M100: 2.9 | N100: 2.7 | O100: 3.3 | Q100: 1 | R100: 0 | S100: 0 | U100: 0 | V100: P
A102: 2014-12-26 | B102: 16 | C102: 4 | D102: 8 | E102: 15 | G102: 14 | H102: 16 | I102: 4 | J102: 9 | K102: 7 | L102: 12.3 | M102: 4.2 | N102: 3.4 | O102: 2.3 | Q102: 0 | R102: 1 | S102: 1 | U102: 0 | V102: P
A103: VINCENNES | B103: 9 | C103: 4 | D103: 10 | E103: 6 | G103: 10 | H103: 4 | I103: 5 | J103: 1 | K103: 7 | L103: 3.1 | M103: 1.7 | N103: 4 | O103: 2.4 | Q103: 1 | R103: 1 | S103: 0 | U103: 0 | V103: P
B104: 7 | C104: 10 | D104: 9 | E104: 12 | G104: 10 | H104: 11 | I104: 2 | J104: 9 | K104: 12 | L104: 4.3 | M104: 2 | N104: 2.2 | O104: 3.3 | Q104: 1 | R104: 0 | S104: 0 | U104: 0 | V104: P
B105: 7 | C105: 5 | D105: 4 | E105: 3 | G105: 5 | H105: 7 | I105: 4 | J105: 2 | K105: 1 | L105: 3.6 | M105: 1.3 | N105: 2.8 | Q105: 1 | R105: 1 | S105: 1 | U105: 0 | V105: P
B106: 7 | C106: 14 | D106: 11 | E106: 5 | G106: 14 | H106: 15 | I106: 11 | J106: 13 | K106: 8 | L106: 3.4 | M106: 2.1 | N106: 3.3 | O106: 2 | Q106: 1 | R106: 0 | S106: 1 | U106: 0 | V106: P
B107: 4 | C107: 5 | D107: 6 | E107: 7 | G107: 3 | H107: 6 | I107: 5 | J107: 7 | K107: 1 | L107: 5.2 | M107: 1.6 | N107: 1.3 | O107: 1.5 | Q107: 0 | R107: 1 | S107: 1 | U107: 0 | V107: P
B108: 9 | C108: 8 | D108: 7 | E108: 5 | G108: 6 | H108: 4 | I108: 5 | J108: 7 | K108: 9 | L108: 5 | M108: 1.5 | N108: 2.5 | O108: 2.9 | Q108: 0 | R108: 0 | S108: 1 | U108: 0 | V108: P
B109: 8 | C109: 5 | D109: 15 | E109: 6 | G109: 6 | H109: 5 | I109: 11 | J109: 4 | K109: 10 | L109: 7.6 | M109: 2.2 | N109: 2.3 | O109: 4.8 | Q109: 1 | R109: 1 | S109: 0 | U109: 0 | V109: P
A111: 2014-12-27 | B111: 9 | C111: 7 | D111: 8 | E111: 5 | G111: 6 | H111: 7 | I111: 2 | J111: 4 | K111: 8 | L111: 8.5 | M111: 2.2 | N111: 1.3 | O111: 5.6 | Q111: 0 | R111: 1 | S111: 0 | U111: 0 | V111: P
A112: VINCENNES | B112: 8 | C112: 15 | D112: 7 | E112: 1 | G112: 12 | H112: 8 | I112: 4 | J112: 11 | K112: 14 | L112: 23.3 | M112: 6 | N112: 1.5 | O112: 7.4 | Q112: 0 | R112: 1 | S112: 0 | U112: 0 | V112: P
B113: 1 | C113: 7 | D113: 2 | E113: 5 | G113: 17 | H113: 3 | I113: 7 | J113: 15 | K113: 5 | L113: 12.2 | M113: 3.3 | N113: 4.7 | O113: 2 | Q113: 0 | R113: 0 | S113: 1 | U113: 0 | V113: P
B114: 15 | C114: 7 | D114: 18 | E114: 2 | G114: 10 | H114: 5 | I114: 15 | J114: 18 | K114: 12 | L114: 40.9 | M114: 7.5 | N114: 3 | O114: 3.1 | Q114: 0 | R114: 0 | S114: 1 | U114: 0 | V114: P
B115: 2 | C115: 10 | D115: 8 | E115: 14 | G115: 17 | H115: 3 | I115: 4 | J115: 8 | K115: 10 | L115: 15.5 | M115: 4.2 | N115: 4.6 | O115: 2 | Q115: 0 | R115: 0 | S115: 0 | U115: 0 | V115: P
B116: 3 | C116: 4 | D116: 12 | E116: 11 | G116: 9 | H116: 3 | I116: 1 | J116: 11 | K116: 2 | L116: 10.5 | M116: 2.7 | N116: 1.9 | O116: 3.5 | Q116: 0 | R116: 1 | S116: 0 | U116: 0 | V116: P
B117: 6 | C117: 8 | D117: 11 | E117: 9 | G117: 12 | H117: 6 | I117: 11 | J117: 9 | K117: 5 | L117: 7.2 | M117: 2 | N117: 2.2 | O117: 2.5 | Q117: 0 | R117: 1 | S117: 1 | U117: 0 | V117: P
B118: 13 | C118: 14 | D118: 9 | E118: 16 | G118: 15 | H118: 11 | I118: 2 | J118: 9 | K118: 4 | L118: 19.4 | M118: 4.5 | N118: 2.9 | O118: 22 | Q118: 0 | R118: 0 | S118: 0 | U118: 0 | V118: P
A120: 2014-12-28 | B120: 10 | C120: 11 | D120: 2 | E120: 5 | G120: 10 | H120: 5 | I120: 2 | J120: 11 | K120: 8 | L120: 1.8 | M120: 1.4 | N120: 4.3 | O120: 2.8 | Q120: 1 | R120: 1 | S120: 1 | U120: 1 | V120: G
A121: VINCENNES | B121: 4 | C121: 8 | D121: 3 | E121: 14 | G121: 8 | H121: 14 | I121: 1 | J121: 13 | K121: 6 | L121: 16.6 | M121: 4 | N121: 3.4 | O121: 18 | Q121: 1 | R121: 1 | S121: 0 | U121: 0 | V121: P
B122: 5 | C122: 4 | D122: 13 | E122: 11 | G122: 4 | H122: 9 | I122: 6 | J122: 10 | K122: 3 | L122: 6.6 | M122: 2.5 | N122: 4.2 | O122: 1.8 | Q122: 1 | R122: 0 | S122: 0 | U122: 0 | V122: P
B123: 8 | C123: 5 | D123: 9 | E123: 1 | G123: 17 | H123: 1 | I123: 5 | J123: 9 | K123: 10 | L123: 25.3 | M123: 6.2 | N123: 5.5 | O123: 3.3 | Q123: 0 | R123: 1 | S123: 1 | U123: 0 | V123: P
B124: 7 | C124: 10 | D124: 9 | E124: 5 | G124: 2 | H124: 11 | I124: 5 | J124: 7 | K124: 10 | L124: 6.3 | M124: 2.5 | N124: 2.1 | O124: 2.8 | Q124: 0 | R124: 0 | S124: 1 | U124: 0 | V124: P
B125: 2 | C125: 1 | D125: 15 | E125: 10 | G125: 5 | H125: 2 | I125: 4 | J125: 9 | K125: 6 | L125: 16.5 | M125: 3.6 | N125: 1.7 | O125: 2.1 | Q125: 0 | R125: 1 | S125: 0 | U125: 0 | V125: P
B126: 7 | C126: 2 | D126: 9 | E126: 8 | G126: 6 | H126: 2 | I126: 5 | J126: 7 | K126: 3 | L126: 8.2 | M126: 2.8 | N126: 2.2 | O126: 3.4 | Q126: 0 | R126: 1 | S126: 0 | U126: 0 | V126: P
B127: 7 | C127: 5 | D127: 11 | E127: 8 | G127: 7 | H127: 5 | I127: 6 | J127: 12 | K127: 9 | L127: 3.1 | M127: 1.5 | N127: 2.6 | O127: 5.7 | Q127: 1 | R127: 1 | S127: 0 | U127: 1 | V127: G
A129: 2014-12-29 | B129: 4 | C129: 7 | D129: 9 | E129: 1 | G129: 15 | H129: 11 | I129: 14 | J129: 2 | K129: 5 | L129: 14.7 | M129: 4.9 | N129: 2.5 | O129: 5.3 | Q129: 0 | R129: 0 | S129: 0 | U129: 0 | V129: P
A130: VINCENNES | B130: 9 | C130: 13 | D130: 12 | E130: 10 | G130: 13 | H130: 12 | I130: 9 | J130: 11 | K130: 8 | L130: 3.7 | M130: 1.7 | N130: 2 | O130: 1.5 | Q130: =IF(L130="","",COUNTIF(B130:E130,G130)) -> 1 | R130: =IF(M130="","",COUNTIF(B130:E130,H130)) -> 1 | S130: =IF(N130="","",COUNTIF(B130:E130,I130)) -> 1 | U130: 0 | V130: P
B131: 10 | C131: 6 | D131: 8 | E131: 5 | G131: 8 | H131: 2 | I131: 4 | J131: 9 | K131: 13 | L131: 7.6 | M131: 3.2 | N131: 2.7 | O131: 2.7 | Q131: 1 | R131: 0 | S131: 0 | U131: 0 | V131: P
B132: 8 | C132: 7 | D132: 10 | E132: 2 | G132: 8 | H132: 10 | I132: 2 | J132: 3 | K132: 7 | L132: 2.8 | M132: 1.2 | N132: 1.5 | O132: 1.4 | Q132: 1 | R132: 1 | S132: 1 | U132: 1 | V132: G
B133: 16 | C133: 15 | D133: 10 | E133: 9 | G133: 15 | H133: 16 | I133: 10 | J133: 14 | K133: 9 | L133: 16.6 | M133: 4.4 | N133: 1.7 | O133: 2.6 | Q133: 1 | R133: 1 | S133: 1 | U133: =IF(L133="","",COUNTIF(B133,G133)) -> 0 | V133: =IF(L133="","",IF(U133=0,"P","G")) -> P
B134: 9 | C134: 12 | D134: 7 | E134: 4 | G134: 8 | H134: 7 | I134: 1 | J134: 5 | K134: 12 | L134: 12.8 | M134: 4 | N134: 2.6 | O134: 5.6 | Q134: 0 | R134: 1 | S134: 0 | U134: 0 | V134: P
B135: 4 | C135: 7 | D135: 14 | E135: 12 | G135: 1 | H135: 10 | I135: 6 | J135: 8 | K135: 9 | L135: 68.7 | M135: 16.9 | N135: 3.5 | O135: 5.1 | Q135: 0 | R135: 0 | S135: 0 | U135: 0 | V135: P
B136: 12 | C136: 13 | D136: 9 | E136: 7 | G136: 13 | H136: 14 | I136: 12 | J136: 9 | K136: 4 | L136: 3.6 | M136: 1.6 | N136: 1.7 | O136: 2.1 | Q136: 1 | R136: 0 | S136: 1 | U136: 0 | V136: P
U137: =IF(L137="","",COUNTIF(B137:E137,G137)) ->  | V137: =IF(L137="","",IF(U137=0,"P","G")) -> 
A138: 2014-12-30 | B138: 16 | C138: 14 | D138: 12 | E138: 8 | G138: 15 | H138: 7 | I138: 10 | J138: 14 | K138: 1 | L138: 31.6 | M138: 6.7 | N138: 2.1 | O138: 4.1 | Q138: 0 | R138: 0 | S138: 0 | U138: 0 | V138: P
A139: VINCENNES | B139: 12 | C139: 11 | D139: 2 | E139: 9 | G139: 9 | H139: 11 | I139: 6 | J139: 12 | K139: 15 | L139: 9.4 | M139: 3 | N139: 2 | O139: 7.9 | Q139: 1 | R139: 1 | S139: 0 | U139: 1 | V139: G
B140: 3 | C140: 8 | D140: 1 | E140: 9 | G140: 3 | H140: 5 | I140: 9 | J140: 6 | K140: 7 | L140: 2.1 | M140: 1.3 | N140: 4.2 | O140: 3.3 | Q140: 1 | R140: 0 | S140: 1 | U140: 1 | V140: G
B141: 12 | C141: 14 | D141: 11 | E141: 13 | G141: 10 | H141: 12 | I141: 14 | J141: 5 | K141: 8 | L141: 4.2 | M141: 2.3 | N141: 2 | O141: 2.3 | Q141: 0 | R141: 1 | S141: 1 | U141: 0 | V141: P
B142: 14 | C142: 11 | D142: 5 | E142: 9 | G142: 11 | H142: 4 | I142: 13 | J142: 12 | K142: 9 | L142: 2.5 | M142: 1.5 | N142: 2.8 | O142: 2.5 | Q142: 1 | R142: 0 | S142: 0 | U142: 1 | V142: G
B143: 6 | C143: 8 | D143: 5 | E143: 9 | G143: 8 | H143: 5 | I143: 4 | J143: 9 | K143: 12 | L143: 9.3 | M143: 2.4 | N143: 1.8 | O143: 2.1 | Q143: 1 | R143: 1 | S143: 0 | U143: 1 | V143: G
B144: 13 | C144: 11 | D144: 18 | E144: 4 | G144: 8 | H144: 17 | I144: 12 | J144: 16 | K144: 14 | L144: 28.4 | M144: 11.1 | N144: 3.6 | O144: 8.1 | Q144: 0 | R144: 0 | S144: 0 | U144: 0 | V144: P
B145: 4 | C145: 13 | D145: 1 | E145: 5 | G145: 11 | H145: 12 | I145: 7 | J145: 9 | K145: 4 | L145: 4.3 | M145: 2.1 | N145: 3.4 | O145: 5.3 | Q145: 0 | R145: 0 | S145: 0 | U145: 0 | V145: P
A147: 2014-12-31 | B147: 1 | C147: 6 | D147: 2 | E147: 13 | G147: 12 | H147: 9 | I147: 1 | J147: 4 | K147: 6 | L147: 5.1 | M147: 1.8 | N147: 3.1 | O147: 1.8 | Q147: 0 | R147: 0 | S147: 1 | U147: 0 | V147: P
A148: CAGNES SUR MER | B148: 6 | C148: 1 | D148: 4 | E148: 5 | G148: 7 | H148: 2 | I148: 4 | J148: 3 | K148: 1 | L148: 16.2 | M148: 3.2 | N148: 2.5 | O148: 1.2 | Q148: 0 | R148: 0 | S148: 1 | U148: 0 | V148: P
B149: 8 | C149: 5 | D149: 9 | E149: 16 | G149: 14 | H149: 7 | I149: 6 | J149: 12 | K149: 8 | L149: 12.9 | M149: 3.7 | N149: 4.3 | O149: 2.9 | Q149: 0 | R149: 0 | S149: 0 | U149: 0 | V149: P
B150: 1 | C150: 2 | D150: 9 | E150: 10 | G150: 8 | H150: 2 | I150: 3 | J150: 6 | K150: 1 | L150: 5.3 | M150: 2.2 | N150: 2.6 | O150: 4.7 | Q150: 0 | R150: 1 | S150: 0 | U150: 0 | V150: P
B151: 7 | C151: 6 | D151: 3 | E151: 11 | G151: 7 | H151: 6 | I151: 1 | J151: 4 | K151: 3 | L151: 4.3 | M151: 1.7 | N151: 2.4 | O151: 4.5 | Q151: 1 | R151: 1 | S151: 0 | U151: 1 | V151: G
B152: 3 | C152: 1 | D152: 6 | E152: 2 | G152: 3 | H152: 15 | I152: 6 | J152: 2 | K152: 10 | L152: 9.1 | M152: 2.3 | N152: 2.9 | O152: 2.4 | Q152: 1 | R152: 0 | S152: 1 | U152: 1 | V152: G
B153: 7 | C153: 4 | D153: 9 | E153: 2 | G153: 4 | H153: 7 | I153: 11 | J153: 2 | K153: 9 | L153: 4 | M153: 1.9 | N153: 1.8 | O153: 6.2 | Q153: 1 | R153: 1 | S153: 0 | U153: 1 | V153: G
A155: 2015-01-01 | B155: 15 | C155: 4 | D155: 8 | E155: 5 | G155: 10 | H155: 15 | I155: 14 | J155: 4 | K155: 3 | L155: 5.3 | M155: 3.3 | N155: 1.5 | O155: 4.3 | Q155: 0 | R155: 1 | S155: 0 | U155: 0 | V155: P
A156: VINCENNES | B156: 18 | C156: 17 | D156: 13 | E156: 16 | G156: 5 | H156: 18 | I156: 10 | J156: 13 | K156: 9 | L156: 22.1 | M156: 5.2 | N156: 1.4 | O156: 3.1 | Q156: 0 | R156: 1 | S156: 0 | U156: 0 | V156: P
B157: 1 | C157: 5 | D157: 13 | E157: 12 | G157: 1 | H157: 3 | I157: 16 | J157: 15 | K157: 13 | L157: 2.5 | M157: 1.6 | N157: 8.3 | O157: 3.1 | Q157: 1 | R157: 0 | S157: 0 | U157: 1 | V157: G
B158: 7 | C158: 1 | D158: 3 | E158: 10 | G158: 2 | H158: 1 | I158: 8 | J158: 12 | K158: 7 | L158: 45 | M158: 12.8 | N158: 2.5 | O158: 1.8 | Q158: 0 | R158: 1 | S158: 0 | U158: 0 | V158: P
B159: 5 | C159: 8 | D159: 11 | E159: 6 | G159: 6 | H159: 8 | I159: 7 | J159: 5 | K159: 4 | L159: 6.5 | M159: 1.6 | N159: 2.8 | O159: 3.8 | Q159: 1 | R159: 1 | S159: 0 | U159: 1 | V159: G
B160: 8 | C160: 4 | D160: 9 | E160: 3 | G160: 4 | H160: 9 | I160: 6 | J160: 3 | K160: 7 | L160: 5.8 | M160: 2 | N160: 1.5 | O160: 1.7 | Q160: 1 | R160: 1 | S160: 0 | U160: 1 | V160: G
B161: 10 | C161: 14 | D161: 5 | E161: 7 | G161: 3 | H161: 14 | I161: 10 | J161: 11 | K161: 5 | L161: 3.6 | M161: 1.5 | N161: 1.6 | O161: 1.5 | Q161: 0 | R161: 1 | S161: 1 | U161: 0 | V161: P
B162: 7 | C162: 8 | D162: 9 | E162: 10 | G162: 6 | H162: 8 | I162: 3 | J162: 10 | K162: 7 | L162: 62.2 | M162: 8.3 | N162: 1.9 | O162: 7 | Q162: 0 | R162: 1 | S162: 0 | U162: 0 | V162: P
A164: 2015-01-02 | B164: 1 | C164: 7 | D164: 6 | E164: 9 | G164: 7 | H164: 5 | I164: 1 | J164: 3 | K164: 10 | L164: 9.3 | M164: 2.2 | N164: 2.3 | O164: 1.5 | Q164: 1 | R164: 0 | S164: 1 | U164: 1 | V164: G
A165: PAU | B165: 1 | C165: 8 | D165: 6 | E165: 2 | G165: 4 | H165: 2 | I165: 1 | J165: 17 | K165: 9 | L165: 11.9 | M165: 4.2 | N165: 3.8 | O165: 3.5 | Q165: 0 | R165: 1 | S165: 1 | U165: 0 | V165: P
B166: 2 | C166: 4 | D166: 1 | E166: 3 | G166: 2 | H166: 7 | I166: 6 | J166: 18 | K166: 10 | L166: 2.4 | M166: 1.5 | N166: 2.2 | O166: 2.4 | Q166: 1 | R166: 0 | S166: 0 | U166: 1 | V166: G
B167: 6 | C167: 3 | D167: 1 | E167: 5 | G167: 1 | H167: 5 | I167: 9 | J167: 8 | K167: 7 | L167: 4.3 | M167: 2.2 | N167: 3.4 | O167: 6.8 | Q167: 1 | R167: 1 | S167: 0 | U167: 1 | V167: G
B168: 1 | C168: 6 | D168: 2 | E168: 4 | G168: 2 | H168: 3 | I168: 1 | J168: 12 | K168: 6 | L168: 11 | M168: 2.5 | N168: 1.3 | O168: 1.8 | Q168: 1 | R168: 0 | S168: 1 | U168: 1 | V168: G
B169: 10 | C169: 5 | D169: 1 | E169: 6 | G169: 7 | H169: 1 | I169: 10 | J169: 9 | K169: 11 | L169: 20.9 | M169: 5 | N169: 2 | O169: 2 | Q169: 0 | R169: 1 | S169: 1 | U169: 0 | V169: P
B170: 1 | C170: 8 | D170: 4 | E170: 10 | G170: 3 | H170: 9 | I170: 4 | J170: 10 | K170: 6 | L170: 22 | M170: 8.2 | N170: 10 | O170: 6.3 | Q170: 0 | R170: 0 | S170: 1 | U170: 0 | V170: P
B171: 5 | C171: 1 | D171: 3 | E171: 14 | G171: 12 | H171: 1 | I171: 8 | J171: 3 | K171: 6 | L171: 7.3 | M171: 2.5 | N171: 2.9 | O171: 3.1 | Q171: 0 | R171: 1 | S171: 0 | U171: 0 | V171: P
A173: 2015-01-03 | B173: 9 | C173: 6 | D173: 12 | E173: 5 | G173: 12 | H173: 6 | I173: 5 | J173: 3 | K173: 2 | L173: 6.3 | M173: 2 | N173: 1.4 | O173: 2.2 | Q173: 1 | R173: 1 | S173: 1 | U173: 1 | V173: G
A174: VINCENNES | B174: 10 | C174: 11 | D174: 7 | E174: 9 | G174: 10 | H174: 11 | I174: 8 | J174: 3 | K174: 6 | L174: 2.4 | M174: 1.2 | N174: 1.6 | O174: 2.4 | Q174: 1 | R174: 1 | S174: 0 | U174: 1 | V174: G
B175: 5 | C175: 9 | D175: 12 | E175: 14 | G175: 10 | H175: 13 | I175: 5 | J175: 14 | K175: 3 | L175: 63.1 | M175: 7.3 | N175: 1.5 | O175: 2.7 | Q175: 0 | R175: 0 | S175: 1 | U175: 0 | V175: P
B176: 9 | C176: 11 | D176: 7 | E176: 18 | G176: 2 | H176: 11 | I176: 13 | J176: 1 | K176: 9 | L176: 10.3 | M176: 2.9 | N176: 2.4 | O176: 7.1 | Q176: 0 | R176: 1 | S176: 0 | U176: 0 | V176: P
B177: 12 | C177: 11 | D177: 7 | E177: 4 | G177: 12 | H177: 9 | I177: 4 | J177: 15 | K177: 11 | L177: 11.7 | M177: 3.3 | N177: 2.2 | O177: 8.8 | Q177: 1 | R177: 0 | S177: 1 | U177: 1 | V177: G
B178: 15 | C178: 9 | D178: 5 | E178: 8 | G178: 16 | H178: 6 | I178: 11 | J178: 12 | K178: 15 | L178: 9.7 | M178: 2.4 | N178: 6.4 | O178: 3.3 | Q178: 0 | R178: 0 | S178: 0 | U178: 0 | V178: P
B179: 6 | C179: 8 | D179: 5 | E179: 7 | G179: 8 | H179: 1 | I179: 5 | J179: 6 | K179: 4 | L179: 1.9 | M179: 1.1 | N179: 6.4 | O179: 2.2 | Q179: 1 | R179: 0 | S179: 1 | U179: 1 | V179: G
B180: 14 | C180: 8 | D180: 13 | E180: 10 | G180: 12 | H180: 14 | I180: 3 | J180: 10 | K180: 5 | L180: 4.7 | M180: 2.5 | N180: 1.7 | O180: 14.1 | Q180: 0 | R180: 1 | S180: 0 | U180: 0 | V180: P
A182: 2015-01-04 | B182: 5 | C182: 4 | D182: 2 | E182: 8 | G182: 9 | H182: 4 | I182: 5 | J182: 8 | K182: 3 | L182: 5.5 | M182: 1.9 | N182: 2.7 | O182: 1.6 | Q182: 0 | R182: 1 | S182: 1 | U182: 0 | V182: P
A183: VINCENNES | B183: 12 | C183: 5 | D183: 13 | E183: 11 | G183: 12 | H183: 9 | I183: 8 | J183: 5 | K183: 10 | L183: 3 | M183: 1.8 | N183: 2.4 | O183: 2.2 | Q183: 1 | R183: 0 | S183: 0 | U183: 1 | V183: G
B184: 10 | C184: 5 | D184: 1 | E184: 9 | G184: 5 | H184: 4 | I184: 7 | J184: 9 | K184: 3 | L184: 4.2 | M184: 1.4 | N184: 2.8 | O184: 2.5 | Q184: 1 | R184: 0 | S184: 0 | U184: 1 | V184: G
B185: 9 | C185: 3 | D185: 6 | E185: 14 | G185: 9 | H185: 18 | I185: 6 | J185: 17 | K185: 1 | L185: 2.2 | M185: 1.5 | N185: 2.9 | O185: 3.8 | Q185: 1 | R185: 0 | S185: 1 | U185: 1 | V185: G
B186: 6 | C186: 14 | D186: 8 | E186: 13 | G186: 8 | H186: 13 | I186: 12 | J186: 4 | K186: 11 | L186: 3.6 | M186: 2.3 | N186: 2.9 | O186: 4.2 | Q186: 1 | R186: 1 | S186: 0 | U186: 1 | V186: G
B187: 5 | C187: 2 | D187: 6 | E187: 7 | G187: 2 | H187: 4 | I187: 8 | L187: 9.8 | M187: 3.3 | N187: 3.4 | O187: 6.4 | Q187: 1 | R187: 0 | S187: 0 | U187: 1 | V187: G
B188: 14 | C188: 2 | D188: 3 | E188: 8 | G188: 4 | H188: 14 | I188: 11 | J188: 8 | K188: 1 | L188: 3.4 | M188: 1.8 | N188: 1.8 | O188: 7 | Q188: 0 | R188: 1 | S188: 0 | U188: 0 | V188: P
B189: 6 | C189: 4 | D189: 8 | E189: 3 | G189: 3 | H189: 5 | I189: 6 | J189: 7 | K189: 1 | L189: 5.5 | M189: 1.8 | N189: 4.5 | O189: 1.9 | Q189: 1 | R189: 0 | S189: 1 | U189: 1 | V189: G
A191: 2015-01-05 | B191: 12 | C191: 9 | D191: 13 | E191: 16 | G191: 14 | H191: 12 | I191: 10 | J191: 8 | K191: 11 | L191: 8.3 | M191: 2.8 | N191: 2.1 | O191: 2.4 | Q191: 0 | R191: 1 | S191: 0 | U191: 0 | V191: P
A192: VINCENNES | B192: 18 | C192: 9 | D192: 2 | E192: 17 | G192: 3 | H192: 13 | I192: 6 | J192: 9 | K192: 16 | L192: 8.2 | M192: 2.8 | N192: 2.6 | O192: 11.9 | Q192: 0 | R192: 0 | S192: 0 | U192: 0 | V192: P
B193: 3 | C193: 6 | D193: 10 | E193: 5 | G193: 10 | H193: 6 | I193: 3 | J193: 5 | K193: 1 | L193: 1.6 | M193: 1.1 | N193: 1.2 | O193: 1.4 | Q193: 1 | R193: 1 | S193: 1 | U193: 1 | V193: G
B194: 5 | C194: 4 | D194: 8 | E194: 9 | G194: 5 | H194: 11 | I194: 10 | J194: 9 | K194: 7 | L194: 2 | M194: 1.2 | N194: 2.5 | O194: 2.3 | Q194: =IF(L194="","",COUNTIF(B194:E194,G194)) -> 1 | R194: =IF(M194="","",COUNTIF(B194:E194,H194)) -> 0 | S194: =IF(N194="","",COUNTIF(B194:E194,I194)) -> 0 | U194: 1 | V194: G
B195: 4 | C195: 12 | D195: 2 | E195: 8 | G195: 5 | H195: 3 | I195: 4 | J195: 6 | K195: 9 | L195: 7.3 | M195: 2.3 | N195: 2 | O195: 1.5 | Q195: 0 | R195: 0 | S195: 1 | U195: 0 | V195: P
B196: 8 | C196: 15 | D196: 13 | E196: 11 | G196: 13 | H196: 10 | I196: 14 | J196: 15 | K196: 9 | L196: 7.4 | M196: 2.7 | N196: 3.5 | O196: 3.2 | Q196: 1 | R196: 0 | S196: 0 | U196: 1 | V196: G
B197: 12 | C197: 8 | D197: 14 | E197: 11 | G197: 15 | H197: 7 | I197: 11 | J197: 16 | K197: 6 | L197: 16.7 | M197: 4.1 | N197: 4.1 | O197: 3.1 | Q197: 0 | R197: 0 | S197: 1 | U197: =IF(L197="","",COUNTIF(B197:E197,G197)) -> 0 | V197: =IF(L197="","",IF(U197=0,"P","G")) -> P
B198: 7 | C198: 3 | D198: 6 | E198: 2 | G198: 5 | H198: 3 | I198: 4 | J198: 2 | K198: 1 | L198: 7.2 | M198: 2.3 | N198: 1.9 | Q198: 0 | R198: 1 | S198: 0 | U198: 0 | V198: P
A200: 2015-01-06 | B200: 8 | C200: 17 | D200: 7 | E200: 16 | G200: 18 | H200: 12 | I200: 1 | J200: 2 | K200: 7 | L200: 12.8 | M200: 3.5 | N200: 18.8 | O200: 3.6 | Q200: 0 | R200: 0 | S200: 0 | U200: 0 | V200: P
A201: VINCENNES | B201: 7 | C201: 11 | D201: 8 | E201: 5 | G201: 11 | H201: 8 | I201: 6 | J201: 10 | K201: 2 | L201: 2.6 | M201: 1.7 | N201: 2.6 | O201: 4.2 | Q201: 1 | R201: 1 | S201: 0 | U201: 1 | V201: G
B202: 18 | C202: 6 | D202: 1 | E202: 11 | G202: 6 | H202: 4 | I202: 5 | J202: 16 | K202: 9 | L202: 7.2 | M202: 2.5 | N202: 7.7 | O202: 3.3 | Q202: 1 | R202: 0 | S202: 0 | U202: 1 | V202: G
B203: 11 | C203: 5 | D203: 2 | E203: 4 | G203: 12 | H203: 14 | I203: 5 | J203: 15 | K203: 6 | L203: 3.1 | M203: 2 | N203: 3.9 | O203: 2.5 | Q203: 0 | R203: 0 | S203: 1 | U203: 0 | V203: P
B204: 13 | C204: 12 | D204: 15 | E204: 16 | G204: 12 | H204: 6 | I204: 15 | J204: 4 | K204: 9 | L204: 4.5 | M204: 2.2 | N204: 2.4 | O204: 1.8 | Q204: 1 | R204: 0 | S204: 1 | U204: 1 | V204: G
B205: 3 | C205: 4 | D205: 10 | E205: 1 | G205: 11 | H205: 13 | I205: 9 | J205: 12 | K205: 8 | L205: 2.3 | M205: 1.9 | N205: 2.7 | O205: 22.5 | Q205: 0 | R205: 0 | S205: 0 | U205: 0 | V205: P
B206: 8 | C206: 7 | D206: 5 | E206: 6 | G206: 5 | H206: 3 | I206: 7 | J206: 6 | L206: 2.2 | M206: 1.3 | N206: 2.2 | O206: 3.3 | Q206: 1 | R206: 0 | S206: 1 | U206: 1 | V206: G
B207: 9 | C207: 1 | D207: 2 | E207: 5 | G207: 1 | H207: 7 | I207: 9 | J207: 3 | K207: 10 | L207: 11.3 | M207: 2.8 | N207: 2 | O207: 2.3 | Q207: 1 | R207: 0 | S207: 1 | U207: 1 | V207: G
A209: 2015-01-07 | B209: 7 | C209: 2 | D209: 16 | E209: 17 | G209: 7 | H209: 1 | I209: 8 | J209: 13 | K209: 14 | L209: 4.8 | M209: 2.2 | N209: 5 | O209: 1.6 | Q209: 1 | R209: 0 | S209: 0 | U209: 1 | V209: G
A210: CAGNES SUR MER | B210: 7 | C210: 2 | D210: 5 | E210: 8 | G210: 6 | H210: 3 | I210: 8 | J210: 5 | K210: 9 | L210: 4.5 | M210: 2 | N210: 2.6 | O210: 2.8 | Q210: 0 | R210: 0 | S210: 1 | U210: 0 | V210: P
B211: 16 | C211: 10 | D211: 4 | E211: 3 | G211: 12 | H211: 6 | I211: 3 | J211: 5 | K211: 10 | L211: 63.7 | M211: 18.1 | N211: 8 | O211: 3.2 | Q211: 0 | R211: 0 | S211: 1 | U211: 0 | V211: P
B212: 13 | C212: 12 | D212: 11 | E212: 8 | G212: 13 | H212: 11 | I212: 6 | J212: 10 | K212: 7 | L212: 1.3 | M212: 1.2 | N212: 1.4 | O212: 2 | Q212: 1 | R212: 1 | S212: 0 | U212: 1 | V212: G
B213: 7 | C213: 10 | D213: 8 | E213: 6 | G213: 10 | H213: 14 | I213: 4 | J213: 7 | K213: 1 | L213: 12.6 | M213: 6.1 | N213: 3.4 | O213: 22 | Q213: 1 | R213: 0 | S213: 0 | U213: 1 | V213: G
B214: 9 | C214: 11 | D214: 14 | E214: 6 | G214: 14 | H214: 5 | I214: 13 | J214: 1 | K214: 3 | L214: 50.3 | M214: 13 | N214: 5.1 | O214: 8.9 | Q214: 1 | R214: 0 | S214: 0 | U214: 1 | V214: G
B215: 5 | C215: 7 | D215: 11 | E215: 8 | G215: 12 | H215: 5 | I215: 4 | J215: 6 | K215: 11 | L215: 10.9 | M215: 3.6 | N215: 5.7 | O215: 5.3 | Q215: 0 | R215: 1 | S215: 0 | U215: 0 | V215: P
B216: 16 | C216: 14 | D216: 8 | E216: 12 | G216: 5 | H216: 13 | I216: 1 | J216: 16 | K216: 9 | L216: 32.5 | M216: 7.1 | N216: 7.7 | O216: 12.2 | Q216: 0 | R216: 0 | S216: 0 | U216: 0 | V216: P
A218: 2015-01-08 | B218: 13 | C218: 6 | D218: 15 | E218: 14 | G218: 17 | H218: 11 | I218: 13 | J218: 14 | K218: 4 | L218: 28.7 | M218: 8.9 | N218: 4.9 | O218: 5.4 | Q218: 0 | R218: 0 | S218: 1 | U218: 0 | V218: P
A219: CAGNES SUR MER | B219: 7 | C219: 3 | D219: 6 | E219: 8 | G219: 7 | H219: 1 | I219: 4 | J219: 6 | K219: 3 | L219: 2.9 | M219: 1.6 | N219: 1.6 | O219: 4.9 | Q219: 1 | R219: 0 | S219: 0 | U219: 1 | V219: G
B220: 10 | C220: 6 | D220: 8 | E220: 9 | G220: 3 | H220: 5 | I220: 4 | J220: 2 | L220: 3.3 | M220: 2.6 | N220: 3.5 | O220: 3.3 | Q220: 0 | R220: 0 | S220: 0 | U220: 0 | V220: P
B221: 9 | C221: 7 | D221: 5 | E221: 12 | G221: 12 | H221: 5 | I221: 4 | J221: 2 | K221: 10 | L221: 3.2 | M221: 1.8 | N221: 2.7 | O221: 13.4 | Q221: 1 | R221: 1 | S221: 0 | U221: 1 | V221: G
B222: 12 | C222: 6 | D222: 9 | E222: 7 | G222: 10 | H222: 2 | I222: 4 | J222: 8 | K222: 3 | L222: 10.5 | M222: 2.5 | N222: 2.4 | O222: 1.9 | Q222: 0 | R222: 0 | S222: 0 | U222: 0 | V222: P
... 1941 more rows

Sheet Feuil2
A1: Ecart moy | B1: ???? | E1: Mise de base | F1: 1 €
A2: ecart max | B2: ????
A4: Montante
A5: Placé | B5: Gagnant | C5: Gagnant | D5: Placé | E5: Placé | F5: placé
A6: 1 | B6: 1 | C6: 1 | D6: 1 | E6: 1 | F6: 2 | G6: 5
A7: 4 | B7: 2 | C7: 1 | D7: 2 | E7: 2 | F7: 5 | G7: 10
A8: 7 | B8: 3 | C8: 1 | D8: 5 | E8: 4 | F8: 20 | G8: 15
A9: 10 | B9: 4 | C9: 2 | D9: 12 | E9: 8 | F9: 50 | G9: 20
A10: 13 | B10: 5 | C10: 2 | D10: 24 | E10: 16 | G10: 25
A11: 16 | B11: 6 | C11: 2 | E11: 32 | G11: 30
C12: 4 | E12: 64 | G12: Ecart 7 jeu perdu et attendre le 1er jeu gagnant pour rejouer
C13: 4 | E13: 128
C14: 4
C15: 8
C16: 8 | G16: Prenons l' exemple du jeu des 4 chevaux « placés» à l’écart 1,
C17: 8
C18: 16 | G18: Vous ne jouez pas le 1er cheval de la liste - s’il perd alors vous jouez le second cheval en "placé" en misant votre mise de base. - Si le l er cheval gagne ("gagnant" ou "placé") vous ne jouez plus à ce jeu durant cette journée et rendez-vous au lendemain
C19: 16
C20: 16 | G20: Si ce second cheval perd, vous jouez le 3ème cheval en misant votre mise de base. Enfin si ce 3ème cheval perd vous jouez le 4ème cheval toujours en misant toujours votre mise de base. - Toujours arrêt au premier jeu gagné.
B24: A faire: | C24: Avec arrêt
C25: Sans arrêt
C26: Ecart
C27: En fonction du nb de partants
C28: bilan sur le nb de part
C29: bilan sans A
C30: bilan AA
C31: Bilan écart

Sheet A faire
BD1: SI(BF4="";"";SI(BG4<>0;"";SI(OU(ESTTEXTE(BH3);ET(BL3>0;BF3="G"));1;SI(BJ3=0;BH3*2;1)))) | BL1: 1 | BM1: 4 | BN1: 7 | BO1: 10
S2: SP1 Placé | AA2: SP2 Placé | AJ2: SP3 Placé | AS2: P1 Gagnant sans arrêt montante X2 | BC2: P1 Gagnant avec arrêt montante X2
A3: Date | B3: P1 | C3: P2 | D3: P3 | E3: P4 | G3: 1er | H3: 2ème | I3: 3ème | J3: 4ème | K3: 5ème | L3: SG | M3: SP1 | N3: SP2 | O3: SP3 | Q3: P1 | R3: Result | S3: Cote | T3: Mise | U3: Cumul Mises | V3: Gain Brut | W3: Cumul des gain | X3: Résultat net | Z3: P2 | AA3: Result | AB3: Cote | AC3: Mise | AD3: Cumul Mises | AE3: Gain Brut | AF3: Cumul des gain | AG3: Résultat net | AI3: P3 | AJ3: Result | AK3: Cote | AL3: Mise | AM3: Cumul Mises | AN3: Gain Brut | AO3: Cumul des gain | AP3: Résultat net | AS3: Result | AT3: Cote | AU3: Mise | AV3: Cumul Mises | AW3: Gain Brut | AX3: Cumul des gain | AY3: Résultat net | BB3: Result | BC3: Cote | BD3: Mise | BE3: Cumul Mises | BF3: Gain Brut | BG3: Cumul des gain | BH3: Résultat net | BK3: Mise | BL3: Brut | BM3: net
A4: 2014-12-15 | B4: 4 | C4: 2 | D4: 1 | E4: 9 | G4: 7 | H4: 2 | I4: 4 | J4: 10 | K4: 9 | L4: 3.5 | M4: 1.5 | N4: 2.5 | O4: 1.5 | Q4: =IF(L4="","",COUNTIF(B4,G4)) -> 0 | R4: =IF(L4="","",IF(Q4=0,"P","G")) -> P | S4: =U44 -> 0 | T4: =IF(R4="","",IF(OR(ISTEXT(T3),AND(X3>0,R3="G")),1,IF(V3=0,T3*2,ABS(ROUNDUP(X3*2,0))))) -> 1 | U4: =IF(T4="","",SUM($T$4:T4)) -> 1 | V4: =IF(T4="","",S4*T4) -> 0 | W4: =IF(T4="","",SUM($V$4:V4)) -> 0 | X4: =IF(T4="","",SUM($V$4:V4)-SUM($T$4:T4)) -> -1 | Z4: =IF(L4="","",COUNTIF(C4,H4)) -> 1 | AA4: =IF(N4="","",IF(Z4=0,"P","G")) -> G | AB4: =IF(L4="","",IF(AA4="P",0,N4)) -> 2.5 | AC4: =IF(AA4="","",IF(OR(ISTEXT(AC3),AND(AG3>0,AA3="G")),1,IF(AE3=0,AC3*2,ABS(ROUNDUP(AG3*2,0))))) -> 1 | AD4: =IF(AC4="","",SUM($AC$4:AC4)) -> 1 | AE4: =IF(AC4="","",AB4*AC4) -> 2.5 | AF4: =IF(AC4="","",SUM($AE$4:AE4)) -> 2.5 | AG4: =IF(AC4="","",SUM($AE$4:AE4)-SUM($AC$4:AC4)) -> 1.5 | AJ4: =IF(L4="","",IF(#REF!=0,"P","G")) ->  | AK4: =IF(L4="","",IF(AJ4="P",0,O4)) ->  | AL4: =IF(AJ4="","",IF(OR(ISTEXT(AL3),AND(AP3>0,AJ3="G")),1,IF(AN3=0,AL3*2,ABS(ROUNDUP(AP3*2,0))))) ->  | AM4: =IF(AL4="","",SUM($AL$4:AL4)) ->  | AN4: =IF(AL4="","",AK4*AL4) ->  | AO4: =IF(AL4="","",SUM($AN$4:AN4)) ->  | AP4: =IF(AL4="","",SUM($AN$4:AN4)-SUM($AL$4:AL4)) ->  | AR4: =IF(L4="","",COUNTIF(B4,G4)) -> 0 | AS4: =IF(L4="","",IF(AR4=0,"P","G")) -> P | AT4: =IF(L4="","",IF(AS4="P",0,L4)) -> 0 | AU4: =IF(AS4="","",IF(OR(ISTEXT(AU3),AND(AY3>0,AS3="G")),1,IF(AW3=0,AU3*2,1))) -> 1 | AV4: =IF(AU4="","",SUM($AU$4:AU4)) -> 1 | AW4: =IF(AU4="","",AT4*AU4) -> 0 | AX4: =IF(AU4="","",SUM($AW$4:AW4)) -> 0 | AY4: =IF(AU4="","",SUM($AW$4:AW4)-SUM($AU$4:AU4)) -> -1 | BA4: =IF(L4="","",COUNTIF(B4,G4)) -> 0 | BB4: =IF(Q4="","",IF(BA4=0,"P","G")) -> P | BC4: =IF(L4="","",IF(BB4="P",0,L4)) -> 0 | BD4: =IF(BB4="","",IF(BC4<>0,"",IF(OR(ISTEXT(BD3),AND(BH3>0,BB3="G")),1,IF(BF3=0,BD3*2,1)))) -> 1 | BE4: =IF(BD4="","",SUM($BD$4:BD4)) -> 1 | BF4: =IF(BD4="","",BC4*BD4) -> 0 | BG4: =IF(BD4="","",SUM($BF$4:BF4)) -> 0 | BH4: =IF(BD4="","",SUM($BF$4:BF4)-SUM($BD$4:BD4)) -> -1 | BK4: 1 | BL4: =IF(BK4="","",IF(BK4="","",BC4*BK4)) -> 0 | BM4: =IF(BK4="","",SUM($BL$4:BL4)-SUM($BK$4:BK4)) -> -1 | BO4: 1
A5: CAGNES SUR MER | B5: 8 | C5: 9 | D5: 2 | E5: 10 | G5: 14 | H5: 9 | I5: 1 | J5: 12 | K5: 7 | L5: 16.4 | M5: 4.4 | N5: 2.8 | O5: 2.6 | Q5: =IF(L5="","",COUNTIF(B5,G5)) -> 0 | R5: =IF(L5="","",IF(Q5=0,"P","G")) -> P | S5: =IF(L5="","",IF(R5="P",0,M5)) -> 0 | T5: =IF(R5="","",IF(OR(ISTEXT(T4),AND(X4>0,R4="G")),1,IF(V4=0,T4*2,ABS(ROUNDUP(X4*2,0))))) -> 2 | U5: =IF(T5="","",SUM($T$4:T5)) -> 3 | V5: =IF(T5="","",S5*T5) -> 0 | W5: =IF(T5="","",SUM($V$4:V5)) -> 0 | X5: =IF(T5="","",SUM($V$4:V5)-SUM($T$4:T5)) -> -3 | Z5: =IF(L5="","",COUNTIF(C5,H5)) -> 1 | AA5: =IF(N5="","",IF(Z5=0,"P","G")) -> G | AB5: =IF(L5="","",IF(AA5="P",0,N5)) -> 2.8 | AC5: =IF(AA5="","",IF(OR(ISTEXT(AC4),AND(AG4>0,AA4="G")),1,IF(AE4=0,AC4*2,ABS(ROUNDUP(AG4*2,0))))) -> 1 | AD5: =IF(AC5="","",SUM($AC$4:AC5)) -> 2 | AE5: =IF(AC5="","",AB5*AC5) -> 2.8 | AF5: =IF(AC5="","",SUM($AE$4:AE5)) -> 5.3 | AG5: =IF(AC5="","",SUM($AE$4:AE5)-SUM($AC$4:AC5)) -> 3.3 | AJ5: =IF(L5="","",IF(#REF!=0,"P","G")) ->  | AK5: =IF(L5="","",IF(AJ5="P",0,O5)) ->  | AL5: =IF(AJ5="","",IF(OR(ISTEXT(AL4),AND(AP4>0,AJ4="G")),1,IF(AN4=0,AL4*2,ABS(ROUNDUP(AP4*2,0))))) ->  | AM5: =IF(AL5="","",SUM($AL$4:AL5)) ->  | AN5: =IF(AL5="","",AK5*AL5) ->  | AO5: =IF(AL5="","",SUM($AN$4:AN5)) ->  | AP5: =IF(AL5="","",SUM($AN$4:AN5)-SUM($AL$4:AL5)) ->  | AR5: =IF(L5="","",COUNTIF(B5,G5)) -> 0 | AS5: =IF(L5="","",IF(AR5=0,"P","G")) -> P | AT5: =IF(L5="","",IF(AS5="P",0,L5)) -> 0 | AU5: =IF(AS5="","",IF(OR(ISTEXT(AU4),AND(AY4>0,AS4="G")),1,IF(AW4=0,AU4*2,1))) -> 2 | AV5: =IF(AU5="","",SUM($AU$4:AU5)) -> 3 | AW5: 0 | AX5: =IF(AU5="","",SUM($AW$4:AW5)) -> 0 | AY5: =IF(AU5="","",SUM($AW$4:AW5)-SUM($AU$4:AU5)) -> -3 | BA5: =IF(L5="","",COUNTIF(B5,G5)) -> 0 | BB5: =IF(Q5="","",IF(BA5=0,"P","G")) -> P | BC5: =IF(L5="","",IF(BB5="P",0,L5)) -> 0 | BD5: =IF(BB5="","",IF(BC4<>0,"",IF(OR(ISTEXT(BD4),AND(BH4>0,BB4="G")),1,IF(BF4=0,BD4*2,1)))) -> 2 | BE5: =IF(BD5="","",SUM($BD$4:BD5)) -> 3 | BF5: =IF(BD5="","",BC5*BD5) -> 0 | BG5: =IF(BD5="","",SUM($BF$4:BF5)) -> 0 | BH5: =IF(BD5="","",SUM($BF$4:BF5)-SUM($BD$4:BD5)) -> -3 | BK5: =IF(BB5="","",IF(AND(BM4>0,BB4="G"),$BL$1,IF(BB4="P",$BM$1,1))) -> 4 | BL5: =IF(BK5="","",IF(BK5="","",BC5*BK5)) -> 0 | BM5: =IF(BK5="","",SUM($BL$4:BL5)-SUM($BK$4:BK5)) -> -5 | BO5: =IF(BB5="","",IF(AND(BM4>0,BB4="G"),$BL$1,IF(BB4="G",1,$BM$1))) -> 4
B6: 4 | C6: 15 | D6: 5 | E6: 3 | G6: 16 | H6: 6 | I6: 5 | J6: 14 | K6: 7 | L6: 45.5 | M6: 11.4 | N6: 11.5 | O6: 3.9 | Q6: =IF(L6="","",COUNTIF(B6,G6)) -> 0 | R6: =IF(L6="","",IF(Q6=0,"P","G")) -> P | S6: =IF(L6="","",IF(R6="P",0,M6)) -> 0 | T6: 4 | U6: =IF(T6="","",SUM($T$4:T6)) -> 7 | V6: 0 | W6: =IF(T6="","",SUM($V$4:V6)) -> 0 | X6: =IF(T6="","",SUM($V$4:V6)-SUM($T$4:T6)) -> -7 | Z6: =IF(L6="","",COUNTIF(C6,H6)) -> 0 | AA6: =IF(N6="","",IF(Z6=0,"P","G")) -> P | AB6: =IF(L6="","",IF(AA6="P",0,N6)) -> 0 | AC6: 1 | AD6: =IF(AC6="","",SUM($AC$4:AC6)) -> 3 | AE6: 0 | AF6: =IF(AC6="","",SUM($AE$4:AE6)) -> 5.3 | AG6: =IF(AC6="","",SUM($AE$4:AE6)-SUM($AC$4:AC6)) -> 2.3 | AJ6: =IF(L6="","",IF(#REF!=0,"P","G")) ->  | AK6: =IF(L6="","",IF(AJ6="P",0,O6)) ->  | AM6: =IF(AL6="","",SUM($AL$4:AL6)) ->  | AO6: =IF(AL6="","",SUM($AN$4:AN6)) ->  | AP6: =IF(AL6="","",SUM($AN$4:AN6)-SUM($AL$4:AL6)) ->  | AR6: =IF(L6="","",COUNTIF(B6,G6)) -> 0 | AS6: =IF(L6="","",IF(AR6=0,"P","G")) -> P | AT6: =IF(L6="","",IF(AS6="P",0,L6)) -> 0 | AU6: 4 | AV6: =IF(AU6="","",SUM($AU$4:AU6)) -> 7 | AW6: 0 | AX6: =IF(AU6="","",SUM($AW$4:AW6)) -> 0 | AY6: =IF(AU6="","",SUM($AW$4:AW6)-SUM($AU$4:AU6)) -> -7 | BA6: =IF(L6="","",COUNTIF(B6,G6)) -> 0 | BB6: P | BC6: =IF(L6="","",IF(BB6="P",0,L6)) -> 0 | BD6: 4 | BE6: =IF(BD6="","",SUM($BD$4:BD6)) -> 7 | BF6: 0 | BG6: =IF(BD6="","",SUM($BF$4:BF6)) -> 0 | BH6: =IF(BD6="","",SUM($BF$4:BF6)-SUM($BD$4:BD6)) -> -7 | BK6: =IF(BB6="","",IF(AND(BM5>0,BB5="G"),$BL$1,IF(BB5="P",$BM$1,1))) -> 4 | BL6: 0 | BM6: =IF(BK6="","",SUM($BL$4:BL6)-SUM($BK$4:BK6)) -> -9 | BO6: =IF(BB6="","",IF(AND(BM5>0,BB5="G"),$BL$1,IF(BB5="G",1,$BM$1))) -> 4
B7: 6 | C7: 5 | D7: 8 | E7: 2 | G7: 6 | H7: 2 | I7: 7 | J7: 8 | K7: 5 | L7: 8.9 | M7: 2.1 | N7: 1.3 | O7: 1.8 | Q7: =IF(L7="","",COUNTIF(B7,G7)) -> 1 | R7: =IF(L7="","",IF(Q7=0,"P","G")) -> G | S7: =IF(L7="","",IF(R7="P",0,M7)) -> 2.1 | T7: 8 | U7: =IF(T7="","",SUM($T$4:T7)) -> 15 | V7: 16.8 | W7: =IF(T7="","",SUM($V$4:V7)) -> 16.8 | X7: =IF(T7="","",SUM($V$4:V7)-SUM($T$4:T7)) -> 1.8 | Z7: =IF(L7="","",COUNTIF(C7,H7)) -> 0 | AA7: =IF(N7="","",IF(Z7=0,"P","G")) -> P | AB7: =IF(L7="","",IF(AA7="P",0,N7)) -> 0 | AC7: 2 | AD7: =IF(AC7="","",SUM($AC$4:AC7)) -> 5 | AE7: 0 | AF7: =IF(AC7="","",SUM($AE$4:AE7)) -> 5.3 | AG7: =IF(AC7="","",SUM($AE$4:AE7)-SUM($AC$4:AC7)) -> 0.3 | AJ7: =IF(L7="","",IF(#REF!=0,"P","G")) ->  | AK7: =IF(L7="","",IF(AJ7="P",0,O7)) ->  | AM7: =IF(AL7="","",SUM($AL$4:AL7)) ->  | AO7: =IF(AL7="","",SUM($AN$4:AN7)) ->  | AP7: =IF(AL7="","",SUM($AN$4:AN7)-SUM($AL$4:AL7)) ->  | AR7: =IF(L7="","",COUNTIF(B7,G7)) -> 1 | AS7: =IF(L7="","",IF(AR7=0,"P","G")) -> G | AT7: =IF(L7="","",IF(AS7="P",0,L7)) -> 8.9 | AU7: 8 | AV7: =IF(AU7="","",SUM($AU$4:AU7)) -> 15 | AW7: 71.2 | AX7: =IF(AU7="","",SUM($AW$4:AW7)) -> 71.2 | AY7: =IF(AU7="","",SUM($AW$4:AW7)-SUM($AU$4:AU7)) -> 56.2 | BA7: =IF(L7="","",COUNTIF(B7,G7)) -> 1 | BB7: G | BC7: =IF(L7="","",IF(BB7="P",0,L7)) -> 8.9 | BD7: 8 | BE7: =IF(BD7="","",SUM($BD$4:BD7)) -> 15 | BF7: 71.2 | BG7: =IF(BD7="","",SUM($BF$4:BF7)) -> 71.2 | BH7: =IF(BD7="","",SUM($BF$4:BF7)-SUM($BD$4:BD7)) -> 56.2 | BK7: =IF(BB7="","",IF(AND(BM6>0,BB6="G"),$BL$1,IF(BB6="P",$BM$1,1))) -> 4 | BL7: 35.6 | BM7: =IF(BK7="","",SUM($BL$4:BL7)-SUM($BK$4:BK7)) -> 22.6
B8: 2 | C8: 1 | D8: 3 | E8: 5 | G8: 2 | H8: 5 | I8: 6 | J8: 7 | K8: 1 | L8: 4.1 | M8: 1.7 | N8: 10.2 | O8: 4.9 | Q8: =IF(L8="","",COUNTIF(B8,G8)) -> 1 | R8: =IF(L8="","",IF(Q8=0,"P","G")) -> G | S8: =IF(L8="","",IF(R8="P",0,M8)) -> 1.7 | T8: 1 | U8: =IF(T8="","",SUM($T$4:T8)) -> 16 | V8: 1.7 | W8: =IF(T8="","",SUM($V$4:V8)) -> 18.5 | X8: =IF(T8="","",SUM($V$4:V8)-SUM($T$4:T8)) -> 2.5 | Z8: =IF(L8="","",COUNTIF(C8,H8)) -> 0 | AA8: =IF(N8="","",IF(Z8=0,"P","G")) -> P | AB8: =IF(L8="","",IF(AA8="P",0,N8)) -> 0 | AC8: 4 | AD8: =IF(AC8="","",SUM($AC$4:AC8)) -> 9 | AE8: 0 | AF8: =IF(AC8="","",SUM($AE$4:AE8)) -> 5.3 | AG8: =IF(AC8="","",SUM($AE$4:AE8)-SUM($AC$4:AC8)) -> -3.7 | AJ8: =IF(L8="","",IF(#REF!=0,"P","G")) ->  | AK8: =IF(L8="","",IF(AJ8="P",0,O8)) ->  | AM8: =IF(AL8="","",SUM($AL$4:AL8)) ->  | AO8: =IF(AL8="","",SUM($AN$4:AN8)) ->  | AP8: =IF(AL8="","",SUM($AN$4:AN8)-SUM($AL$4:AL8)) ->  | AR8: =IF(L8="","",COUNTIF(B8,G8)) -> 1 | AS8: =IF(L8="","",IF(AR8=0,"P","G")) -> G | AT8: =IF(L8="","",IF(AS8="P",0,L8)) -> 4.1 | AU8: 1 | AV8: =IF(AU8="","",SUM($AU$4:AU8)) -> 16 | AW8: 4.1 | AX8: =IF(AU8="","",SUM($AW$4:AW8)) -> 75.3 | AY8: =IF(AU8="","",SUM($AW$4:AW8)-SUM($AU$4:AU8)) -> 59.3 | BA8: =IF(L8="","",COUNTIF(B8,G8)) -> 1 | BB8: G | BC8: =IF(L8="","",IF(BB8="P",0,L8)) -> 4.1 | BE8: =IF(BD8="","",SUM($BD$4:BD8)) ->  | BG8: =IF(BD8="","",SUM($BF$4:BF8)) ->  | BH8: =IF(BD8="","",SUM($BF$4:BF8)-SUM($BD$4:BD8)) ->  | BK8: 1 | BL8: 4.1 | BM8: =IF(BK8="","",SUM($BL$4:BL8)-SUM($BK$4:BK8)) -> 25.7
B9: 9 | C9: 11 | D9: 4 | E9: 3 | G9: 2 | H9: 3 | I9: 11 | J9: 4 | K9: 12 | L9: 15.5 | M9: 4 | N9: 3.6 | O9: 4.5 | Q9: =IF(L9="","",COUNTIF(B9,G9)) -> 0 | R9: =IF(L9="","",IF(Q9=0,"P","G")) -> P | S9: =IF(L9="","",IF(R9="P",0,M9)) -> 0 | T9: 1 | U9: =IF(T9="","",SUM($T$4:T9)) -> 17 | V9: 0 | W9: =IF(T9="","",SUM($V$4:V9)) -> 18.5 | X9: =IF(T9="","",SUM($V$4:V9)-SUM($T$4:T9)) -> 1.5 | Z9: =IF(L9="","",COUNTIF(C9,H9)) -> 0 | AA9: =IF(N9="","",IF(Z9=0,"P","G")) -> P | AB9: =IF(L9="","",IF(AA9="P",0,N9)) -> 0 | AC9: 8 | AD9: =IF(AC9="","",SUM($AC$4:AC9)) -> 17 | AE9: 0 | AF9: =IF(AC9="","",SUM($AE$4:AE9)) -> 5.3 | AG9: =IF(AC9="","",SUM($AE$4:AE9)-SUM($AC$4:AC9)) -> -11.7 | AJ9: =IF(L9="","",IF(#REF!=0,"P","G")) ->  | AK9: =IF(L9="","",IF(AJ9="P",0,O9)) ->  | AM9: =IF(AL9="","",SUM($AL$4:AL9)) ->  | AO9: =IF(AL9="","",SUM($AN$4:AN9)) ->  | AP9: =IF(AL9="","",SUM($AN$4:AN9)-SUM($AL$4:AL9)) ->  | AR9: =IF(L9="","",COUNTIF(B9,G9)) -> 0 | AS9: =IF(L9="","",IF(AR9=0,"P","G")) -> P | AT9: =IF(L9="","",IF(AS9="P",0,L9)) -> 0 | AU9: 1 | AV9: =IF(AU9="","",SUM($AU$4:AU9)) -> 17 | AW9: 0 | AX9: =IF(AU9="","",SUM($AW$4:AW9)) -> 75.3 | AY9: =IF(AU9="","",SUM($AW$4:AW9)-SUM($AU$4:AU9)) -> 58.3 | BA9: =IF(L9="","",COUNTIF(B9,G9)) -> 0 | BB9: P | BC9: =IF(L9="","",IF(BB9="P",0,L9)) -> 0 | BE9: =IF(BD9="","",SUM($BD$4:BD9)) ->  | BG9: =IF(BD9="","",SUM($BF$4:BF9)) ->  | BH9: =IF(BD9="","",SUM($BF$4:BF9)-SUM($BD$4:BD9)) ->  | BK9: 1 | BL9: 0 | BM9: =IF(BK9="","",SUM($BL$4:BL9)-SUM($BK$4:BK9)) -> 24.7
B10: 9 | C10: 6 | D10: 3 | E10: 5 | G10: 7 | H10: 5 | I10: 6 | J10: 3 | K10: 2 | L10: 14.1 | M10: 4.5 | N10: 2.5 | O10: 2.2 | Q10: =IF(L10="","",COUNTIF(B10,G10)) -> 0 | R10: =IF(L10="","",IF(Q10=0,"P","G")) -> P | S10: =IF(L10="","",IF(R10="P",0,M10)) -> 0 | T10: 2 | U10: =IF(T10="","",SUM($T$4:T10)) -> 19 | V10: 0 | W10: =IF(T10="","",SUM($V$4:V10)) -> 18.5 | X10: =IF(T10="","",SUM($V$4:V10)-SUM($T$4:T10)) -> -0.5 | Z10: =IF(L10="","",COUNTIF(C10,H10)) -> 0 | AA10: =IF(N10="","",IF(Z10=0,"P","G")) -> P | AB10: =IF(L10="","",IF(AA10="P",0,N10)) -> 0 | AC10: 16 | AD10: =IF(AC10="","",SUM($AC$4:AC10)) -> 33 | AE10: 0 | AF10: =IF(AC10="","",SUM($AE$4:AE10)) -> 5.3 | AG10: =IF(AC10="","",SUM($AE$4:AE10)-SUM($AC$4:AC10)) -> -27.7 | AJ10: =IF(L10="","",IF(#REF!=0,"P","G")) ->  | AK10: =IF(L10="","",IF(AJ10="P",0,O10)) ->  | AM10: =IF(AL10="","",SUM($AL$4:AL10)) ->  | AO10: =IF(AL10="","",SUM($AN$4:AN10)) ->  | AP10: =IF(AL10="","",SUM($AN$4:AN10)-SUM($AL$4:AL10)) ->  | AR10: =IF(L10="","",COUNTIF(B10,G10)) -> 0 | AS10: =IF(L10="","",IF(AR10=0,"P","G")) -> P | AT10: =IF(L10="","",IF(AS10="P",0,L10)) -> 0 | AU10: 2 | AV10: =IF(AU10="","",SUM($AU$4:AU10)) -> 19 | AW10: 0 | AX10: =IF(AU10="","",SUM($AW$4:AW10)) -> 75.3 | AY10: =IF(AU10="","",SUM($AW$4:AW10)-SUM($AU$4:AU10)) -> 56.3 | BA10: =IF(L10="","",COUNTIF(B10,G10)) -> 0 | BB10: P | BC10: =IF(L10="","",IF(BB10="P",0,L10)) -> 0 | BD10: =IF(BB10="","",IF(BC9<>0,"",IF(OR(ISTEXT(BD9),AND(BH9>0,BB9="G")),1,IF(BF9=0,BD9*2,1)))) -> 1 | BE10: =IF(BD10="","",SUM($BD$4:BD10)) -> 16 | BF10: 0 | BG10: =IF(BD10="","",SUM($BF$4:BF10)) -> 71.2 | BH10: =IF(BD10="","",SUM($BF$4:BF10)-SUM($BD$4:BD10)) -> 55.2 | BK10: 4 | BL10: 0 | BM10: =IF(BK10="","",SUM($BL$4:BL10)-SUM($BK$4:BK10)) -> 20.7
Q11: =IF(L11="","",COUNTIF(B11,G11)) ->  | R11: =IF(L11="","",IF(Q11=0,"P","G")) ->  | S11: =IF(L11="","",IF(R11="P",0,M11)) ->  | U11: =IF(T11="","",SUM($T$4:T11)) ->  | W11: =IF(T11="","",SUM($V$4:V11)) ->  | X11: =IF(T11="","",SUM($V$4:V11)-SUM($T$4:T11)) ->  | Z11: =IF(L11="","",COUNTIF(C11,H11)) ->  | AA11: =IF(N11="","",IF(Z11=0,"P","G")) ->  | AB11: =IF(L11="","",IF(AA11="P",0,N11)) ->  | AD11: =IF(AC11="","",SUM($AC$4:AC11)) ->  | AF11: =IF(AC11="","",SUM($AE$4:AE11)) ->  | AG11: =IF(AC11="","",SUM($AE$4:AE11)-SUM($AC$4:AC11)) ->  | AJ11: =IF(L11="","",IF(#REF!=0,"P","G")) ->  | AK11: =IF(L11="","",IF(AJ11="P",0,O11)) ->  | AM11: =IF(AL11="","",SUM($AL$4:AL11)) ->  | AO11: =IF(AL11="","",SUM($AN$4:AN11)) ->  | AP11: =IF(AL11="","",SUM($AN$4:AN11)-SUM($AL$4:AL11)) ->  | AR11: =IF(L11="","",COUNTIF(B11,G11)) ->  | AS11: =IF(L11="","",IF(AR11=0,"P","G")) ->  | AT11: =IF(L11="","",IF(AS11="P",0,L11)) ->  | AV11: =IF(AU11="","",SUM($AU$4:AU11)) ->  | AX11: =IF(AU11="","",SUM($AW$4:AW11)) ->  | AY11: =IF(AU11="","",SUM($AW$4:AW11)-SUM($AU$4:AU11)) ->  | BA11: =IF(L11="","",COUNTIF(B11,G11)) ->  | BC11: =IF(L11="","",IF(BB11="P",0,L11)) ->  | BE11: =IF(BD11="","",SUM($BD$4:BD11)) ->  | BG11: =IF(BD11="","",SUM($BF$4:BF11)) ->  | BH11: =IF(BD11="","",SUM($BF$4:BF11)-SUM($BD$4:BD11)) ->  | BM11: =IF(BK11="","",SUM($BL$4:BL11)-SUM($BK$4:BK11)) -> 
A12: 2014-12-16 | B12: 1 | C12: 6 | D12: 8 | E12: 12 | G12: 1 | H12: 9 | I12: 10 | J12: 13 | K12: 15 | L12: 4.3 | M12: 2.3 | N12: 2.4 | O12: 3.5 | Q12: =IF(L12="","",COUNTIF(B12,G12)) -> 1 | R12: =IF(L12="","",IF(Q12=0,"P","G")) -> G | S12: =IF(L12="","",IF(R12="P",0,M12)) -> 2.3 | T12: 1 | U12: =IF(T12="","",SUM($T$4:T12)) -> 20 | V12: 2.3 | W12: =IF(T12="","",SUM($V$4:V12)) -> 20.8 | X12: =IF(T12="","",SUM($V$4:V12)-SUM($T$4:T12)) -> 0.8 | AJ12: =IF(L12="","",IF(#REF!=0,"P","G")) ->  | AK12: =IF(L12="","",IF(AJ12="P",0,O12)) ->  | AM12: =IF(AL12="","",SUM($AL$4:AL12)) ->  | AO12: =IF(AL12="","",SUM($AN$4:AN12)) ->  | AP12: =IF(AL12="","",SUM($AN$4:AN12)-SUM($AL$4:AL12)) ->  | AR12: =IF(L12="","",COUNTIF(B12,G12)) -> 1 | AS12: =IF(L12="","",IF(AR12=0,"P","G")) -> G | AT12: =IF(L12="","",IF(AS12="P",0,L12)) -> 4.3 | AU12: 1 | AV12: =IF(AU12="","",SUM($AU$4:AU12)) -> 20 | AW12: 4.3 | AX12: =IF(AU12="","",SUM($AW$4:AW12)) -> 79.6 | AY12: =IF(AU12="","",SUM($AW$4:AW12)-SUM($AU$4:AU12)) -> 59.6 | BA12: =IF(L12="","",COUNTIF(B12,G12)) -> 1 | BB12: G | BC12: =IF(L12="","",IF(BB12="P",0,L12)) -> 4.3 | BE12: =IF(BD12="","",SUM($BD$4:BD12)) ->  | BG12: =IF(BD12="","",SUM($BF$4:BF12)) ->  | BH12: =IF(BD12="","",SUM($BF$4:BF12)-SUM($BD$4:BD12)) ->  | BK12: 1 | BL12: 4.3 | BM12: =IF(BK12="","",SUM($BL$4:BL12)-SUM($BK$4:BK12)) -> 24
A13: PAU | B13: 10 | C13: 9 | D13: 12 | E13: 3 | G13: 3 | H13: 1 | I13: 4 | J13: 10 | K13: 12 | L13: 8 | M13: 2.9 | N13: 4.7 | O13: 4.3 | Q13: =IF(L13="","",COUNTIF(B13,G13)) -> 0 | R13: =IF(L13="","",IF(Q13=0,"P","G")) -> P | S13: =IF(L13="","",IF(R13="P",0,M13)) -> 0 | T13: 1 | U13: =IF(T13="","",SUM($T$4:T13)) -> 21 | V13: 0 | W13: =IF(T13="","",SUM($V$4:V13)) -> 20.8 | X13: =IF(T13="","",SUM($V$4:V13)-SUM($T$4:T13)) -> -0.2 | AJ13: =IF(L13="","",IF(#REF!=0,"P","G")) ->  | AK13: =IF(L13="","",IF(AJ13="P",0,O13)) ->  | AM13: =IF(AL13="","",SUM($AL$4:AL13)) ->  | AO13: =IF(AL13="","",SUM($AN$4:AN13)) ->  | AP13: =IF(AL13="","",SUM($AN$4:AN13)-SUM($AL$4:AL13)) ->  | AR13: =IF(L13="","",COUNTIF(B13,G13)) -> 0 | AS13: =IF(L13="","",IF(AR13=0,"P","G")) -> P | AT13: =IF(L13="","",IF(AS13="P",0,L13)) -> 0 | AU13: 1 | AV13: =IF(AU13="","",SUM($AU$4:AU13)) -> 21 | AW13: 0 | AX13: =IF(AU13="","",SUM($AW$4:AW13)) -> 79.6 | AY13: =IF(AU13="","",SUM($AW$4:AW13)-SUM($AU$4:AU13)) -> 58.6 | BA13: =IF(L13="","",COUNTIF(B13,G13)) -> 0 | BB13: P | BC13: =IF(L13="","",IF(BB13="P",0,L13)) -> 0 | BE13: =IF(BD13="","",SUM($BD$4:BD13)) ->  | BG13: =IF(BD13="","",SUM($BF$4:BF13)) ->  | BH13: =IF(BD13="","",SUM($BF$4:BF13)-SUM($BD$4:BD13)) ->  | BK13: 1 | BL13: 0 | BM13: =IF(BK13="","",SUM($BL$4:BL13)-SUM($BK$4:BK13)) -> 23
B14: 9 | C14: 5 | D14: 2 | E14: 1 | G14: 9 | H14: 7 | I14: 11 | J14: 15 | K14: 14 | L14: 3.5 | M14: 1.5 | N14: 3.5 | O14: 2.7 | Q14: =IF(L14="","",COUNTIF(B14,G14)) -> 1 | R14: =IF(L14="","",IF(Q14=0,"P","G")) -> G | S14: =IF(L14="","",IF(R14="P",0,M14)) -> 1.5 | T14: 2 | U14: =IF(T14="","",SUM($T$4:T14)) -> 23 | V14: 3 | W14: =IF(T14="","",SUM($V$4:V14)) -> 23.8 | X14: =IF(T14="","",SUM($V$4:V14)-SUM($T$4:T14)) -> 0.8 | AJ14: =IF(L14="","",IF(#REF!=0,"P","G")) ->  | AK14: =IF(L14="","",IF(AJ14="P",0,O14)) ->  | AM14: =IF(AL14="","",SUM($AL$4:AL14)) ->  | AO14: =IF(AL14="","",SUM($AN$4:AN14)) ->  | AP14: =IF(AL14="","",SUM($AN$4:AN14)-SUM($AL$4:AL14)) ->  | AR14: =IF(L14="","",COUNTIF(B14,G14)) -> 1 | AS14: =IF(L14="","",IF(AR14=0,"P","G")) -> G | AT14: =IF(L14="","",IF(AS14="P",0,L14)) -> 3.5 | AU14: 2 | AV14: =IF(AU14="","",SUM($AU$4:AU14)) -> 23 | AW14: 7 | AX14: =IF(AU14="","",SUM($AW$4:AW14)) -> 86.6 | AY14: =IF(AU14="","",SUM($AW$4:AW14)-SUM($AU$4:AU14)) -> 63.6 | BA14: =IF(L14="","",COUNTIF(B14,G14)) -> 1 | BB14: G | BC14: =IF(L14="","",IF(BB14="P",0,L14)) -> 3.5 | BD14: 1 | BE14: =IF(BD14="","",SUM($BD$4:BD14)) -> 17 | BF14: 3.5 | BG14: =IF(BD14="","",SUM($BF$4:BF14)) -> 74.7 | BH14: =IF(BD14="","",SUM($BF$4:BF14)-SUM($BD$4:BD14)) -> 57.7 | BK14: 4 | BL14: 14 | BM14: =IF(BK14="","",SUM($BL$4:BL14)-SUM($BK$4:BK14)) -> 33
B15: 3 | C15: 6 | D15: 12 | E15: 10 | G15: 3 | H15: 6 | I15: 12 | J15: 4 | K15: 8 | L15: 2.8 | M15: 1.3 | N15: 1.5 | O15: 2 | Q15: =IF(L15="","",COUNTIF(B15,G15)) -> 1 | R15: =IF(L15="","",IF(Q15=0,"P","G")) -> G | S15: =IF(L15="","",IF(R15="P",0,M15)) -> 1.3 | T15: 1 | U15: =IF(T15="","",SUM($T$4:T15)) -> 24 | V15: 1.3 | W15: =IF(T15="","",SUM($V$4:V15)) -> 25.1 | X15: =IF(T15="","",SUM($V$4:V15)-SUM($T$4:T15)) -> 1.1 | AJ15: =IF(L15="","",IF(#REF!=0,"P","G")) ->  | AK15: =IF(L15="","",IF(AJ15="P",0,O15)) ->  | AM15: =IF(AL15="","",SUM($AL$4:AL15)) ->  | AO15: =IF(AL15="","",SUM($AN$4:AN15)) ->  | AP15: =IF(AL15="","",SUM($AN$4:AN15)-SUM($AL$4:AL15)) ->  | AR15: =IF(L15="","",COUNTIF(B15,G15)) -> 1 | AS15: =IF(L15="","",IF(AR15=0,"P","G")) -> G | AT15: =IF(L15="","",IF(AS15="P",0,L15)) -> 2.8 | AU15: 1 | AV15: =IF(AU15="","",SUM($AU$4:AU15)) -> 24 | AW15: 2.8 | AX15: =IF(AU15="","",SUM($AW$4:AW15)) -> 89.4 | AY15: =IF(AU15="","",SUM($AW$4:AW15)-SUM($AU$4:AU15)) -> 65.4 | BA15: =IF(L15="","",COUNTIF(B15,G15)) -> 1 | BB15: G | BC15: =IF(L15="","",IF(BB15="P",0,L15)) -> 2.8 | BE15: =IF(BD15="","",SUM($BD$4:BD15)) ->  | BG15: =IF(BD15="","",SUM($BF$4:BF15)) ->  | BH15: =IF(BD15="","",SUM($BF$4:BF15)-SUM($BD$4:BD15)) ->  | BK15: 1 | BL15: 2.8 | BM15: =IF(BK15="","",SUM($BL$4:BL15)-SUM($BK$4:BK15)) -> 34.8
B16: 2 | C16: 3 | D16: 11 | E16: 12 | G16: 12 | H16: 2 | I16: 11 | J16: 4 | K16: 13 | L16: 11.7 | M16: 2.6 | N16: 1.5 | O16: 6.4 | Q16: =IF(L16="","",COUNTIF(B16,G16)) -> 0 | R16: =IF(L16="","",IF(Q16=0,"P","G")) -> P | S16: =IF(L16="","",IF(R16="P",0,M16)) -> 0 | T16: 1 | U16: =IF(T16="","",SUM($T$4:T16)) -> 25 | V16: 0 | W16: =IF(T16="","",SUM($V$4:V16)) -> 25.1 | X16: =IF(T16="","",SUM($V$4:V16)-SUM($T$4:T16)) -> 0.1 | AJ16: =IF(L16="","",IF(#REF!=0,"P","G")) ->  | AK16: =IF(L16="","",IF(AJ16="P",0,O16)) ->  | AM16: =IF(AL16="","",SUM($AL$4:AL16)) ->  | AO16: =IF(AL16="","",SUM($AN$4:AN16)) ->  | AP16: =IF(AL16="","",SUM($AN$4:AN16)-SUM($AL$4:AL16)) ->  | AR16: =IF(L16="","",COUNTIF(B16,G16)) -> 0 | AS16: =IF(L16="","",IF(AR16=0,"P","G")) -> P | AT16: =IF(L16="","",IF(AS16="P",0,L16)) -> 0 | AU16: 1 | AV16: =IF(AU16="","",SUM($AU$4:AU16)) -> 25 | AW16: 0 | AX16: =IF(AU16="","",SUM($AW$4:AW16)) -> 89.4 | AY16: =IF(AU16="","",SUM($AW$4:AW16)-SUM($AU$4:AU16)) -> 64.4 | BA16: =IF(L16="","",COUNTIF(B16,G16)) -> 0 | BB16: P | BC16: =IF(L16="","",IF(BB16="P",0,L16)) -> 0 | BE16: =IF(BD16="","",SUM($BD$4:BD16)) ->  | BG16: =IF(BD16="","",SUM($BF$4:BF16)) ->  | BH16: =IF(BD16="","",SUM($BF$4:BF16)-SUM($BD$4:BD16)) ->  | BK16: 1 | BL16: 0 | BM16: =IF(BK16="","",SUM($BL$4:BL16)-SUM($BK$4:BK16)) -> 33.8
B17: 2 | C17: 5 | D17: 7 | E17: 3 | G17: 2 | H17: 9 | I17: 1 | J17: 6 | K17: 13 | L17: 10.7 | M17: 3.1 | N17: 2.2 | O17: 2.5 | Q17: =IF(L17="","",COUNTIF(B17,G17)) -> 1 | R17: =IF(L17="","",IF(Q17=0,"P","G")) -> G | S17: =IF(L17="","",IF(R17="P",0,M17)) -> 3.1 | T17: 2 | U17: =IF(T17="","",SUM($T$4:T17)) -> 27 | V17: 6.2 | W17: =IF(T17="","",SUM($V$4:V17)) -> 31.3 | X17: =IF(T17="","",SUM($V$4:V17)-SUM($T$4:T17)) -> 4.3 | AJ17: =IF(L17="","",IF(#REF!=0,"P","G")) ->  | AK17: =IF(L17="","",IF(AJ17="P",0,O17)) ->  | AM17: =IF(AL17="","",SUM($AL$4:AL17)) ->  | AO17: =IF(AL17="","",SUM($AN$4:AN17)) ->  | AP17: =IF(AL17="","",SUM($AN$4:AN17)-SUM($AL$4:AL17)) ->  | AR17: =IF(L17="","",COUNTIF(B17,G17)) -> 1 | AS17: =IF(L17="","",IF(AR17=0,"P","G")) -> G | AT17: =IF(L17="","",IF(AS17="P",0,L17)) -> 10.7 | AU17: 2 | AV17: =IF(AU17="","",SUM($AU$4:AU17)) -> 27 | AW17: 21.4 | AX17: =IF(AU17="","",SUM($AW$4:AW17)) -> 110.8 | AY17: =IF(AU17="","",SUM($AW$4:AW17)-SUM($AU$4:AU17)) -> 83.8 | BA17: =IF(L17="","",COUNTIF(B17,G17)) -> 1 | BB17: G | BC17: =IF(L17="","",IF(BB17="P",0,L17)) -> 10.7 | BD17: 1 | BE17: =IF(BD17="","",SUM($BD$4:BD17)) -> 18 | BF17: 10.7 | BG17: =IF(BD17="","",SUM($BF$4:BF17)) -> 85.4 | BH17: =IF(BD17="","",SUM($BF$4:BF17)-SUM($BD$4:BD17)) -> 67.4 | BK17: 4 | BL17: 42.8 | BM17: =IF(BK17="","",SUM($BL$4:BL17)-SUM($BK$4:BK17)) -> 72.6
B18: 5 | C18: 6 | D18: 4 | E18: 2 | G18: 12 | H18: 9 | I18: 2 | J18: 3 | K18: 10 | L18: 14.5 | M18: 4.4 | N18: 4.4 | O18: 2.6 | Q18: =IF(L18="","",COUNTIF(B18,G18)) -> 0 | R18: =IF(L18="","",IF(Q18=0,"P","G")) -> P | S18: =IF(L18="","",IF(R18="P",0,M18)) -> 0 | T18: 1 | U18: =IF(T18="","",SUM($T$4:T18)) -> 28 | V18: 0 | W18: =IF(T18="","",SUM($V$4:V18)) -> 31.3 | X18: =IF(T18="","",SUM($V$4:V18)-SUM($T$4:T18)) -> 3.3 | AJ18: =IF(L18="","",IF(#REF!=0,"P","G")) ->  | AK18: =IF(L18="","",IF(AJ18="P",0,O18)) ->  | AM18: =IF(AL18="","",SUM($AL$4:AL18)) ->  | AO18: =IF(AL18="","",SUM($AN$4:AN18)) ->  | AP18: =IF(AL18="","",SUM($AN$4:AN18)-SUM($AL$4:AL18)) ->  | AR18: =IF(L18="","",COUNTIF(B18,G18)) -> 0 | AS18: =IF(L18="","",IF(AR18=0,"P","G")) -> P | AT18: =IF(L18="","",IF(AS18="P",0,L18)) -> 0 | AU18: 1 | AV18: =IF(AU18="","",SUM($AU$4:AU18)) -> 28 | AW18: 0 | AX18: =IF(AU18="","",SUM($AW$4:AW18)) -> 110.8 | AY18: =IF(AU18="","",SUM($AW$4:AW18)-SUM($AU$4:AU18)) -> 82.8 | BA18: =IF(L18="","",COUNTIF(B18,G18)) -> 0 | BB18: P | BC18: =IF(L18="","",IF(BB18="P",0,L18)) -> 0 | BE18: =IF(BD18="","",SUM($BD$4:BD18)) ->  | BG18: =IF(BD18="","",SUM($BF$4:BF18)) ->  | BH18: =IF(BD18="","",SUM($BF$4:BF18)-SUM($BD$4:BD18)) ->  | BK18: 1 | BL18: 0 | BM18: =IF(BK18="","",SUM($BL$4:BL18)-SUM($BK$4:BK18)) -> 71.6
B19: 12 | C19: 2 | D19: 8 | E19: 11 | G19: 14 | H19: 11 | I19: 8 | J19: 10 | K19: 3 | L19: 23.1 | M19: 5 | N19: 1.8 | O19: 2.9 | Q19: =IF(L19="","",COUNTIF(B19,G19)) -> 0 | R19: =IF(L19="","",IF(Q19=0,"P","G")) -> P | S19: =IF(L19="","",IF(R19="P",0,M19)) -> 0 | T19: 2 | U19: =IF(T19="","",SUM($T$4:T19)) -> 30 | V19: 0 | W19: =IF(T19="","",SUM($V$4:V19)) -> 31.3 | X19: =IF(T19="","",SUM($V$4:V19)-SUM($T$4:T19)) -> 1.3 | AJ19: =IF(L19="","",IF(#REF!=0,"P","G")) ->  | AK19: =IF(L19="","",IF(AJ19="P",0,O19)) ->  | AM19: =IF(AL19="","",SUM($AL$4:AL19)) ->  | AO19: =IF(AL19="","",SUM($AN$4:AN19)) ->  | AP19: =IF(AL19="","",SUM($AN$4:AN19)-SUM($AL$4:AL19)) ->  | AR19: =IF(L19="","",COUNTIF(B19,G19)) -> 0 | AS19: =IF(L19="","",IF(AR19=0,"P","G")) -> P | AT19: =IF(L19="","",IF(AS19="P",0,L19)) -> 0 | AU19: 2 | AV19: =IF(AU19="","",SUM($AU$4:AU19)) -> 30 | AW19: 0 | AX19: =IF(AU19="","",SUM($AW$4:AW19)) -> 110.8 | AY19: =IF(AU19="","",SUM($AW$4:AW19)-SUM($AU$4:AU19)) -> 80.8 | BA19: =IF(L19="","",COUNTIF(B19,G19)) -> 0 | BB19: P | BC19: =IF(L19="","",IF(BB19="P",0,L19)) -> 0 | BD19: 1 | BE19: =IF(BD19="","",SUM($BD$4:BD19)) -> 19 | BF19: 0 | BG19: =IF(BD19="","",SUM($BF$4:BF19)) -> 85.4 | BH19: =IF(BD19="","",SUM($BF$4:BF19)-SUM($BD$4:BD19)) -> 66.4 | BK19: 4 | BL19: 0 | BM19: =IF(BK19="","",SUM($BL$4:BL19)-SUM($BK$4:BK19)) -> 67.6
Q20: =IF(L20="","",COUNTIF(B20,G20)) ->  | R20: =IF(L20="","",IF(Q20=0,"P","G")) ->  | S20: =IF(L20="","",IF(R20="P",0,M20)) ->  | U20: =IF(T20="","",SUM($T$4:T20)) ->  | W20: =IF(T20="","",SUM($V$4:V20)) ->  | X20: =IF(T20="","",SUM($V$4:V20)-SUM($T$4:T20)) ->  | AJ20: =IF(L20="","",IF(#REF!=0,"P","G")) ->  | AK20: =IF(L20="","",IF(AJ20="P",0,O20)) ->  | AM20: =IF(AL20="","",SUM($AL$4:AL20)) ->  | AO20: =IF(AL20="","",SUM($AN$4:AN20)) ->  | AP20: =IF(AL20="","",SUM($AN$4:AN20)-SUM($AL$4:AL20)) ->  | AR20: =IF(L20="","",COUNTIF(B20,G20)) ->  | AS20: =IF(L20="","",IF(AR20=0,"P","G")) ->  | AT20: =IF(L20="","",IF(AS20="P",0,L20)) ->  | AV20: =IF(AU20="","",SUM($AU$4:AU20)) ->  | AX20: =IF(AU20="","",SUM($AW$4:AW20)) ->  | AY20: =IF(AU20="","",SUM($AW$4:AW20)-SUM($AU$4:AU20)) ->  | BA20: =IF(L20="","",COUNTIF(B20,G20)) ->  | BC20: =IF(L20="","",IF(BB20="P",0,L20)) ->  | BE20: =IF(BD20="","",SUM($BD$4:BD20)) ->  | BG20: =IF(BD20="","",SUM($BF$4:BF20)) ->  | BH20: =IF(BD20="","",SUM($BF$4:BF20)-SUM($BD$4:BD20)) ->  | BM20: =IF(BK20="","",SUM($BL$4:BL20)-SUM($BK$4:BK20)) -> 
A21: 2014-12-17 | B21: 4 | C21: 9 | D21: 8 | E21: 10 | G21: 9 | H21: 4 | I21: 15 | J21: 2 | K21: 5 | L21: 5.8 | M21: 2.6 | N21: 2 | O21: 8.7 | Q21: =IF(L21="","",COUNTIF(B21,G21)) -> 0 | R21: =IF(L21="","",IF(Q21=0,"P","G")) -> P | S21: =IF(L21="","",IF(R21="P",0,M21)) -> 0 | T21: 1 | U21: =IF(T21="","",SUM($T$4:T21)) -> 31 | V21: 0 | W21: =IF(T21="","",SUM($V$4:V21)) -> 31.3 | X21: =IF(T21="","",SUM($V$4:V21)-SUM($T$4:T21)) -> 0.3 | AJ21: =IF(L21="","",IF(#REF!=0,"P","G")) ->  | AK21: =IF(L21="","",IF(AJ21="P",0,O21)) ->  | AM21: =IF(AL21="","",SUM($AL$4:AL21)) ->  | AO21: =IF(AL21="","",SUM($AN$4:AN21)) ->  | AP21: =IF(AL21="","",SUM($AN$4:AN21)-SUM($AL$4:AL21)) ->  | AR21: =IF(L21="","",COUNTIF(B21,G21)) -> 0 | AS21: =IF(L21="","",IF(AR21=0,"P","G")) -> P | AT21: =IF(L21="","",IF(AS21="P",0,L21)) -> 0 | AU21: 1 | AV21: =IF(AU21="","",SUM($AU$4:AU21)) -> 31 | AW21: 0 | AX21: =IF(AU21="","",SUM($AW$4:AW21)) -> 110.8 | AY21: =IF(AU21="","",SUM($AW$4:AW21)-SUM($AU$4:AU21)) -> 79.8 | BA21: =IF(L21="","",COUNTIF(B21,G21)) -> 0 | BB21: P | BC21: =IF(L21="","",IF(BB21="P",0,L21)) -> 0 | BE21: =IF(BD21="","",SUM($BD$4:BD21)) ->  | BG21: =IF(BD21="","",SUM($BF$4:BF21)) ->  | BH21: =IF(BD21="","",SUM($BF$4:BF21)-SUM($BD$4:BD21)) ->  | BK21: 1 | BL21: 0 | BM21: =IF(BK21="","",SUM($BL$4:BL21)-SUM($BK$4:BK21)) -> 66.6
